Invoice Transaction,Supplier Name,Service Name,Department,Account Desription,Redact Name,Paid Date, Amount Paid ,Non Recoverable VAT (Where Applicable),Merchant Category
460290,CARE UK LEARNING DISABILITIES SERVS LTD,Adult Services,"Community, Adult & Adults Early Intervention",Residential Home Long Stay Fees,,19/12/14,"10,809.26 ",,Public Bodies
460290,CLIFFEMOUNT COMMUNITY CARE,Adult Services,"Community, Adult & Adults Early Intervention",Residential Home Long Stay Fees,,19/12/14,"19,163.20 ",,Public Bodies
460290,AUDEN HOUSE RESIDENTIAL HOME,Adult Services,"Community, Adult & Adults Early Intervention",Residential Home Long Stay Fees,,19/12/14,"8,828.23 ",,Social Community Care Supplies & Services
460290,BALMORAL HOMES,Adult Services,"Community, Adult & Adults Early Intervention",Residential Home Long Stay Fees,,19/12/14,"7,186.16 ",,Social Community Care Supplies & Services
460290,BAMFORD GRANGE N/H,Adult Services,"Community, Adult & Adults Early Intervention",Residential Home Long Stay Fees,,19/12/14,"2,837.43 ",,Social Community Care Supplies & Services
460290,BELMONT PARKHILL LTD,Adult Services,"Community, Adult & Adults Early Intervention",Residential Home Long Stay Fees,,19/12/14,"45,340.26 ",,Unclassifiable
460290,BLACKCLIFFE LTD,Adult Services,"Community, Adult & Adults Early Intervention",Residential Home Long Stay Fees,,19/12/14,"70,666.66 ",,Social Community Care Supplies & Services
460290,BOURNE HOUSE RESIDENTIAL HOME,Adult Services,"Community, Adult & Adults Early Intervention",Residential Home Long Stay Fees,,19/12/14,"25,210.89 ",,Social Community Care Supplies & Services
460290,BOWLACRE HOME,Adult Services,"Community, Adult & Adults Early Intervention",Residential Home Long Stay Fees,,19/12/14,"13,605.25 ",,Social Community Care Supplies & Services
460290,BROOKVALE,Adult Services,"Community, Adult & Adults Early Intervention",Residential Home Long Stay Fees,,19/12/14,"13,637.70 ",,Social Community Care Supplies & Services
460290,BROUGHTON HOUSE HOME FOR  EX-SERVICE PERSONNEL,Adult Services,"Community, Adult & Adults Early Intervention",Residential Home Long Stay Fees,,19/12/14,909.41 ,,Social Community Care Supplies & Services
460290,CAMBIAN LEARNING DISABILITIES MIDLANDS LTD,Adult Services,"Community, Adult & Adults Early Intervention",Residential Home Long Stay Fees,,19/12/14,"19,580.97 ",,Social Community Care Supplies & Services
460290,CARE UK HOMECARE,Adult Services,"Community, Adult & Adults Early Intervention",Residential Home Long Stay Fees,,19/12/14,491.08 ,,Social Community Care Supplies & Services
460290,CARE UK HOMECARE,Adult Services,"Community, Adult & Adults Early Intervention",Residential Home Long Stay Fees,,19/12/14,"57,244.12 ",,Social Community Care Supplies & Services
460290,CHARNLEY HOUSE LIMITED,Adult Services,"Community, Adult & Adults Early Intervention",Residential Home Long Stay Fees,,19/12/14,"18,600.80 ",,Social Community Care Supplies & Services
460290,CLARKSON HOUSE,Adult Services,"Community, Adult & Adults Early Intervention",Residential Home Long Stay Fees,,19/12/14,"16,812.33 ",,Social Community Care Supplies & Services
460290,ELDER HOMES GROUP,Adult Services,"Community, Adult & Adults Early Intervention",Residential Home Long Stay Fees,,19/12/14,491.08 ,,Social Community Care Supplies & Services
460290,ELDER HOMES GROUP,Adult Services,"Community, Adult & Adults Early Intervention",Residential Home Long Stay Fees,,19/12/14,"62,833.30 ",,Social Community Care Supplies & Services
460290,ELDERCARE (HALIFAX) LTD T/A PARKLANDS NURSING HOME,Adult Services,"Community, Adult & Adults Early Intervention",Residential Home Long Stay Fees,,19/12/14,"5,801.83 ",,Social Community Care Supplies & Services
460290,FAIRFIELD VIEW CARE LTD,Adult Services,"Community, Adult & Adults Early Intervention",Residential Home Long Stay Fees,,19/12/14,"48,827.94 ",,Social Community Care Supplies & Services
460290,FERN BANK,Adult Services,"Community, Adult & Adults Early Intervention",Residential Home Long Stay Fees,,19/12/14,"19,901.66 ",,Social Community Care Supplies & Services
460290,FIRBANK HOUSE NURSING & RESIDENTIAL CARE HOME,Adult Services,"Community, Adult & Adults Early Intervention",Residential Home Long Stay Fees,,19/12/14,"20,917.83 ",,Social Community Care Supplies & Services
460290,FOUR SEASONS HEALTH CARE,Adult Services,"Community, Adult & Adults Early Intervention",Residential Home Long Stay Fees,,19/12/14,"26,509.45 ",,Social Community Care Supplies & Services
460290,LAUREL BANK RESIDENTIAL CARE HOME LTD,Adult Services,"Community, Adult & Adults Early Intervention",Residential Home Long Stay Fees,,19/12/14,"10,845.80 ",,Social Community Care Supplies & Services
460290,MARPLE DALE HALL LTD,Adult Services,"Community, Adult & Adults Early Intervention",Residential Home Long Stay Fees,,19/12/14,"2,753.33 ",,Social Community Care Supplies & Services
460290,MERIDIAN HEALTHCARE LTD,Adult Services,"Community, Adult & Adults Early Intervention",Residential Home Long Stay Fees,,19/12/14,"1,964.32 ",,Social Community Care Supplies & Services
460290,MERIDIAN HEALTHCARE LTD,Adult Services,"Community, Adult & Adults Early Intervention",Residential Home Long Stay Fees,,19/12/14,"825,488.78 ",,Social Community Care Supplies & Services
460290,MOSS COTTAGE NURSING HOME,Adult Services,"Community, Adult & Adults Early Intervention",Residential Home Long Stay Fees,,19/12/14,982.16 ,,Social Community Care Supplies & Services
460290,MOSS COTTAGE NURSING HOME,Adult Services,"Community, Adult & Adults Early Intervention",Residential Home Long Stay Fees,,19/12/14,"48,410.55 ",,Social Community Care Supplies & Services
460290,MRS P RUGGEE,Adult Services,"Community, Adult & Adults Early Intervention",Residential Home Long Stay Fees,Business Payment,19/12/14,"3,995.41 ",,Social Community Care Supplies & Services
460290,OAKWOOD CARE CENTRE,Adult Services,"Community, Adult & Adults Early Intervention",Residential Home Long Stay Fees,,19/12/14,"8,851.61 ",,Social Community Care Supplies & Services
460290,ST GEORGE'S NURSING HOME (OLDHAM) LTD,Adult Services,"Community, Adult & Adults Early Intervention",Residential Home Long Stay Fees,,19/12/14,"26,449.76 ",,Social Community Care Supplies & Services
460290,ST LAWRENCES LODGE,Adult Services,"Community, Adult & Adults Early Intervention",Residential Home Long Stay Fees,,19/12/14,"8,958.92 ",,Social Community Care Supplies & Services
460290,STALEY HOUSE EPH,Adult Services,"Community, Adult & Adults Early Intervention",Residential Home Long Stay Fees,,19/12/14,"22,651.38 ",,Social Community Care Supplies & Services
460290,THE HESLEY GROUP LTD,Adult Services,"Community, Adult & Adults Early Intervention",Residential Home Long Stay Fees,,19/12/14,"7,812.00 ",,Social Community Care Supplies & Services
460290,THE VICARAGE RESIDENTIAL CARE HOME,Adult Services,"Community, Adult & Adults Early Intervention",Residential Home Long Stay Fees,,19/12/14,"19,236.48 ",,Social Community Care Supplies & Services
460290,THORNCLIFFE GRANGE NURSING HOME,Adult Services,"Community, Adult & Adults Early Intervention",Residential Home Long Stay Fees,,19/12/14,"21,869.86 ",,Social Community Care Supplies & Services
460290,THE ALEXANDRA,Adult Services,"Community, Adult & Adults Early Intervention",Residential Home Long Stay Fees,,19/12/14,"1,944.14 ",,Social Community Care Supplies & Services
460290,BOWERFIELD COURT,Adult Services,"Community, Adult & Adults Early Intervention",Residential Home Long Stay Fees,,19/12/14,"9,738.86 ",,Social Community Care
460290,DANSHELL HEALTHCARE LTD,Adult Services,"Community, Adult & Adults Early Intervention",Residential Home Long Stay Fees,,19/12/14,"8,680.00 ",,Social Community Care
460290,DOM POLSKI CARE HOME,Adult Services,"Community, Adult & Adults Early Intervention",Residential Home Long Stay Fees,,19/12/14,"1,876.16 ",,Social Community Care
460290,DOVES NEST NURSING HOME,Adult Services,"Community, Adult & Adults Early Intervention",Residential Home Long Stay Fees,,19/12/14,"3,001.95 ",,Social Community Care
460290,FOUR SEASONS (DFK) LTD T/AS ASHURST PARK CARE HOME,Adult Services,"Community, Adult & Adults Early Intervention",Residential Home Long Stay Fees,,19/12/14,"1,118.26 ",,Social Community Care
460290,HATTON GRANGE,Adult Services,"Community, Adult & Adults Early Intervention",Residential Home Long Stay Fees,,19/12/14,"50,461.19 ",,Social Community Care
460290,HC ONE OF A KIND - GUIDE LANE,Adult Services,"Community, Adult & Adults Early Intervention",Residential Home Long Stay Fees,,19/12/14,"29,151.17 ",,Social Community Care
460290,HC ONE OF A KIND - KINGS PARK,Adult Services,"Community, Adult & Adults Early Intervention",Residential Home Long Stay Fees,,19/12/14,"51,346.03 ",,Social Community Care
460290,LOUTH CARE LTD,Adult Services,"Community, Adult & Adults Early Intervention",Residential Home Long Stay Fees,,19/12/14,"1,789.14 ",,Social Community Care
460290,PROGRESS ADULT SERVICES LIMITED,Adult Services,"Community, Adult & Adults Early Intervention",Residential Home Long Stay Fees,,19/12/14,"13,797.21 ",,Social Community Care
460290,THE ROYAL ELMS REST HOMES,Adult Services,"Community, Adult & Adults Early Intervention",Residential Home Long Stay Fees,,19/12/14,"1,841.58 ",,Social Community Care
460290,GLENROYD CARE HOME,Adult Services,"Community, Adult & Adults Early Intervention",Residential Home Long Stay Fees,,19/12/14,"1,786.84 ",,Social Community Care Supplies & Services
460290,ST GEORGE'S RESIDENTIAL CARE HOME,Adult Services,"Community, Adult & Adults Early Intervention",Residential Home Long Stay Fees,,19/12/14,753.39 ,,Social Community Care Supplies & Services
460290,POLEBANK HALL RESIDENTIAL CARE HOME LTD,Adult Services,"Community, Adult & Adults Early Intervention",Residential Home Long Stay Fees,,19/12/14,"4,062.64 ",,Social Community Care
460290,THE DAVID LEWIS CENTRE,Adult Services,"Community, Adult & Adults Early Intervention",Residential Home Long Stay Fees,,19/12/14,"4,866.47 ",,Social Community Care
460290,ADS,Public Health,Public Health,Residential Home Long Stay Fees,,19/12/14,"7,160.68 ",,Social Community Care Supplies & Services
460290,AMARA CARE LTD,Adult Services,"Community, Adult & Adults Early Intervention",Residential Home Long Stay Fees,,19/12/14,"6,487.86 ",,Social Community Care Supplies & Services
460290,BIRCHWOOD,Adult Services,"Community, Adult & Adults Early Intervention",Residential Home Long Stay Fees,,19/12/14,"2,183.04 ",,Social Community Care Supplies & Services
460290,CHADDERTON TOTAL CAREUNIT LTD,Adult Services,"Community, Adult & Adults Early Intervention",Residential Home Long Stay Fees,,19/12/14,"1,883.70 ",,Social Community Care Supplies & Services
460290,COMPASS CARE LIMITED,Adult Services,"Community, Adult & Adults Early Intervention",Residential Home Long Stay Fees,,19/12/14,"4,462.18 ",,Social Community Care Supplies & Services
460290,ERNELESTHORP NURSING HOME,Adult Services,"Community, Adult & Adults Early Intervention",Residential Home Long Stay Fees,,19/12/14,"1,783.43 ",,Social Community Care Supplies & Services
460290,LYNWOOD,Adult Services,"Community, Adult & Adults Early Intervention",Residential Home Long Stay Fees,,19/12/14,"1,935.29 ",,Social Community Care Supplies & Services
460290,PENDLEBURY CARE HOMES LTD,Adult Services,"Community, Adult & Adults Early Intervention",Residential Home Long Stay Fees,,19/12/14,"1,847.29 ",,Social Community Care Supplies & Services
460290,PENNINE CARE CENTRE,Adult Services,"Community, Adult & Adults Early Intervention",Residential Home Long Stay Fees,,19/12/14,"5,414.57 ",,Social Community Care Supplies & Services
460290,SEYMOUR REST HOME,Adult Services,"Community, Adult & Adults Early Intervention",Residential Home Long Stay Fees,,19/12/14,"1,839.41 ",,Social Community Care Supplies & Services
460290,SIGN,Adult Services,"Community, Adult & Adults Early Intervention",Residential Home Long Stay Fees,,19/12/14,"5,041.13 ",,Social Community Care Supplies & Services
460290,SPINAL UNIT ACTION GROUP,Adult Services,"Community, Adult & Adults Early Intervention",Residential Home Long Stay Fees,,19/12/14,"2,054.15 ",,Social Community Care Supplies & Services
460290,SUNNY BANK PRS LTD,Adult Services,"Community, Adult & Adults Early Intervention",Residential Home Long Stay Fees,,19/12/14,"2,636.11 ",,Social Community Care Supplies & Services
460290,UNITED RESPONSE,Adult Services,"Community, Adult & Adults Early Intervention",Residential Home Long Stay Fees,,19/12/14,"6,172.54 ",,Social Community Care Supplies & Services
460290,WINDMILL CARE HOME,Adult Services,"Community, Adult & Adults Early Intervention",Residential Home Long Stay Fees,,19/12/14,"2,010.13 ",,Social Community Care Supplies & Services
460290,WOODLANDS RESIDENTIAL CARE HOME,Adult Services,"Community, Adult & Adults Early Intervention",Residential Home Long Stay Fees,,19/12/14,"11,466.62 ",,Social Community Care Supplies & Services
460290,CANTERBURY CARE HOMES LTD,Adult Services,"Community, Adult & Adults Early Intervention",Residential Home Long Stay Fees,,19/12/14,985.22 ,,Social Community Care Supplies & Services
460290,EQUALIBRIUM HEALTH CARE,Adult Services,"Community, Adult & Adults Early Intervention",Residential Home Long Stay Fees,,19/12/14,"33,701.96 ",,Social Community Care Supplies & Services
460290,FLORENCE LODGE,Adult Services,"Community, Adult & Adults Early Intervention",Residential Home Long Stay Fees,,19/12/14,"4,121.52 ",,Social Community Care Supplies & Services
460290,LONGWOOD LODGE CARE LTD,Adult Services,"Community, Adult & Adults Early Intervention",Residential Home Long Stay Fees,,19/12/14,"4,318.43 ",,Unclassifiable
460290,ST MARY'S CONTINUING CARE LTD,Adult Services,"Community, Adult & Adults Early Intervention",Residential Home Long Stay Fees,,19/12/14,"11,069.48 ",,Social Community Care Supplies & Services
470595,SPEEDY ASSET SERVICES LTD,Technical,Places,Additional Hire,,01/12/14,970.83 ,,Building Construction Materials
470595,CASTINGS SERVICES NW LTD,Civil Engineers,"Economic Growth, Investment and Sustainability",Debits Goods Received,,01/12/14,"1,990.00 ",,Building Construction Materials
470595,ARCO LIMITED,Civil Engineers,"Economic Growth, Investment and Sustainability",Debits Goods Received,,01/12/14,907.18 ,,Clothing
470595,GREENHAM TRADING LIMITED,Technical,Places,General Materials,,01/12/14,"1,500.00 ",,Clothing
470595,DRAIN ALERT,Technical,Places,Sub-contractor Services,,01/12/14,"4,885.28 ",,Environmental Services
470595,SECURETASK SECURITY LTD,Technical,Places,Sub-contractor Services,,01/12/14,705.20 ,,Facilities & Management Services
470595,AGGREGATE INDUSTRIES UK LIMITED,Technical,Places,General Materials,,01/12/14,"2,568.92 ",,Highway Equipment & Materials
470595,TARMAC CENTRAL LIMITED,Civil Engineers,"Economic Growth, Investment and Sustainability",Debits Goods Received,,01/12/14,"2,081.37 ",,Highway Equipment & Materials�
470595,EAGLE CIVIL ENGINEERING LTD,Technical,Places,Sub-contractor Services,,01/12/14,"51,774.15 ",,Highway Equipment & Materials�
470595,M.C. & M.A. STEWART HAULAGE LTD,Technical,Places,General Materials,,01/12/14,"1,840.00 ",,Horticultural
470595,FAILSWORTH TRAINING SERVICES LTD,Technical,Places,Training Course Costs,,01/12/14,"2,100.00 ",,Human Resources
470595,CIVICA UK LTD,Technical,Places,Computer Software,,01/12/14,"10,644.03 ",,Information Communication Technology
470595,KENNY BROTHERS,Technical,Places,Sub-contractor Services,,01/12/14,"6,330.95 ",,Non 3rd Party spend  
470595,P P O'CONNOR,Multiple Heads of Service,Multiple Strategic Directorates,Tax Retained Sub Contractors,Business Payment,01/12/14,"-10,220.67 ",,Public Bodies
470595,P P O'CONNOR,Technical,Places,Sub-contractor Services,Business Payment,01/12/14,"51,103.37 ",,Public Bodies
470595,ALTITUDE SERVICES,Technical,Places,Sub-contractor Services,,01/12/14,"6,494.36 ",,Utilities
470595,ELLIOTT GROUP LTD,Technical,Places,Additional Hire,,01/12/14,"1,119.74 ",,"Works -  Construction, Repair & Maintenance"
470595,ELLIOTT GROUP LTD,Technical,Places,General Materials,,01/12/14,896.23 ,,"Works -  Construction, Repair & Maintenance"
470595,KONSTRUCTA HIRE LIMITED,Technical,Places,Additional Hire,,01/12/14,784.00 ,,"Works -  Construction, Repair & Maintenance"
470595,CBS (NORTH WEST) LTD,Technical,Places,Sub-contractor Services,,01/12/14,"1,245.28 ",,"Works - Construction, Repair & Maintenance"
470595,PG FABRICATIONS,Multiple Heads of Service,Multiple Strategic Directorates,Tax Retained Sub Contractors,,01/12/14,-104.00 ,,"Works - Construction, Repair & Maintenance"
470595,PG FABRICATIONS,Technical,Places,General Materials,,01/12/14,182.00 ,,"Works - Construction, Repair & Maintenance"
470595,PG FABRICATIONS,Technical,Places,Sub-contractor Services,,01/12/14,520.00 ,,"Works - Construction, Repair & Maintenance"
470596,SMITH BROS CAER CONAN WHOLESALE LTD,Civil Engineers,"Economic Growth, Investment and Sustainability",Debits Goods Received,,10/12/14,"1,279.75 ",,Building Construction Materials
470596,SMITH BROS CAER CONAN WHOLESALE LTD,Technical,Places,Discounts Taken,,10/12/14,-31.99 ,,Building Construction Materials
470596,BENCHMARK BUILDING SUPPLIES LTD,Civil Engineers,"Economic Growth, Investment and Sustainability",Debits Goods Received,,10/12/14,"1,407.92 ",,Building Construction Materials
470596,CASTINGS SERVICES NW LTD,Civil Engineers,"Economic Growth, Investment and Sustainability",Debits Goods Received,,10/12/14,868.25 ,,Building Construction Materials
470596,WENDY LAWTON,Technical,Places,Sub-contractor Services,Business Payment,10/12/14,720.00 ,,Redacted
470596,GREENHAM TRADING LIMITED,Technical,Places,General Materials,,10/12/14,"3,009.11 ",,Clothing
470596,MAIN MAN SUPPLIES LTD,Civil Engineers,"Economic Growth, Investment and Sustainability",Debits Goods Received,,10/12/14,139.50 ,,Clothing
470596,MAIN MAN SUPPLIES LTD,Operations,Places,General Materials,,10/12/14,433.80 ,,Clothing
470596,MAIN MAN SUPPLIES LTD,Technical,Places,General Materials,,10/12/14,66.67 ,,Clothing
470596,MAILBOX MOULDINGSINTERNATIONAL LIMITED,Technical,Places,General Materials,,10/12/14,"3,534.00 ",,Environmental Services
470596,PREMIER WASTE (UK) LTD,Technical,Places,Sub-contractor Services,,10/12/14,"3,402.00 ",,Environmental Services
470596,SECURETASK SECURITY LTD,Technical,Places,Sub-contractor Services,,10/12/14,"6,050.34 ",,Facilities & Management Services
470596,AGGREGATE INDUSTRIES UK LIMITED,Technical,Places,General Materials,,10/12/14,"2,335.85 ",,Highway Equipment & Materials
470596,INSTARMAC GROUP PLC,Technical,Places,General Materials,,10/12/14,"1,794.00 ",,Highway Equipment & Materials�
470596,TARMAC CENTRAL LIMITED,Civil Engineers,"Economic Growth, Investment and Sustainability",Debits Goods Received,,10/12/14,358.30 ,,Highway Equipment & Materials�
470596,TARMAC CENTRAL LIMITED,Technical,Places,General Materials,,10/12/14,498.22 ,,Highway Equipment & Materials�
470596,ACORN LIGHTING SERVICES LTD,Technical,Places,Sub-contractor Services,,10/12/14,640.00 ,,Highway Equipment & Materials�
470596,EAGLE CIVIL ENGINEERING LTD,Technical,Places,Sub-contractor Services,,10/12/14,"4,176.90 ",,Highway Equipment & Materials�
470596,MARWOOD ELECTRICAL CO,Civil Engineers,"Economic Growth, Investment and Sustainability",Debits Goods Received,,10/12/14,"8,388.00 ",,Highway Equipment & Materials�
470596,P CASEY (ENVIRO) LTD,Technical,Places,Tipping Facility Fees,,10/12/14,"2,896.02 ",,Public Bodies
470596,REDDIPAK LIMITED,Civil Engineers,"Economic Growth, Investment and Sustainability",Debits Goods Received,,10/12/14,"1,048.00 ",,Unclassifiable
470596,NEW CHARTER BUILD CO LTD,Technical,Places,Sub-contractor Services,,10/12/14,"2,543.40 ",,"Works -  Construction, Repair & Maintenance"
470596,CBS (NORTH WEST) LTD,Technical,Places,Sub-contractor Services,,10/12/14,"22,234.50 ",,"Works - Construction, Repair & Maintenance"
470597,BLOK N MESH UK LTD,Technical,Places,General Materials,,15/12/14,"1,460.00 ",,Building Construction Materials
470597,BENCHMARK BUILDING SUPPLIES LTD,Technical,Places,General Materials,,15/12/14,607.80 ,,Building Construction Materials
470597,INSTARMAC GROUP PLC,Civil Engineers,"Economic Growth, Investment and Sustainability",Debits Goods Received,,15/12/14,"2,037.28 ",,Highway Equipment & Materials�
470597,TARMAC CENTRAL LIMITED,Civil Engineers,"Economic Growth, Investment and Sustainability",Debits Goods Received,,15/12/14,"1,800.84 ",,Highway Equipment & Materials�
470597,TARMAC CENTRAL LIMITED,Technical,Places,General Materials,,15/12/14,"3,361.62 ",,Highway Equipment & Materials�
470597,EAGLE CIVIL ENGINEERING LTD,Technical,Places,Sub-contractor Services,,15/12/14,"5,865.44 ",,Highway Equipment & Materials�
470597,WOLSELEY UK LTD,Technical,Places,General Materials,,15/12/14,942.30 ,,Highway Equipment & Materials�
470597,KENNY BROTHERS,Technical,Places,Sub-contractor Services,,15/12/14,"4,646.04 ",,Non 3rd Party spend  
470597,W DAVENPORT,Multiple Heads of Service,Multiple Strategic Directorates,Tax Retained Sub Contractors,Business Payment,15/12/14,-148.40 ,,Unclassifiable
470597,W DAVENPORT,Technical,Places,Sub-contractor Services,Business Payment,15/12/14,742.00 ,,Unclassifiable
470597,HSS HIRE SERVICE GROUP  PLC,Technical,Places,Additional Hire,,15/12/14,614.06 ,,Vehicles
470597,AJC ROAD SWEEPERS,Technical,Places,Sub-contractor Services,,15/12/14,"4,062.50 ",,Vehicles
470597,GLOSTA ENGINEERING,Technical,Places,General Materials,,15/12/14,"2,650.00 ",,Redacted
470597,LANCASTRIA GROUP,Technical,Places,General Materials,,15/12/14,"4,270.78 ",,Redacted
470598,CITY ELECTRICAL FACTORS LTD,Technical,Places,Discounts Taken,,22/12/14,-14.39 ,,Building Construction Materials
470598,CITY ELECTRICAL FACTORS LTD,Technical,Places,General Materials,,22/12/14,575.99 ,,Building Construction Materials
470598,SMITH BROS CAER CONAN WHOLESALE LTD,Civil Engineers,"Economic Growth, Investment and Sustainability",Debits Goods Received,,22/12/14,636.30 ,,Building Construction Materials
470598,SMITH BROS CAER CONAN WHOLESALE LTD,Technical,Places,Discounts Taken,,22/12/14,-15.90 ,,Building Construction Materials
470598,T N ROBINSON LTD,Civil Engineers,"Economic Growth, Investment and Sustainability",Debits Goods Received,,22/12/14,320.00 ,,Building Construction Materials
470598,T N ROBINSON LTD,Technical,Places,General Materials,,22/12/14,368.40 ,,Building Construction Materials
470598,SPEEDY ASSET SERVICES LTD,Technical,Places,Additional Hire,,22/12/14,891.36 ,,Building Construction Materials
470598,JEWSON LTD,Technical,Places,General Materials,,22/12/14,"7,030.83 ",,Building Construction Materials
470598,ARCO LIMITED,Civil Engineers,"Economic Growth, Investment and Sustainability",Debits Goods Received,,22/12/14,359.66 ,,Clothing
470598,ARCO LIMITED,Technical,Places,General Materials,,22/12/14,303.54 ,,Clothing
470598,VIRIDOR,Technical,Places,Development Monies,,22/12/14,"21,191.04 ",,Environmental Services
470598,AGGREGATE INDUSTRIES UK LIMITED,Technical,Places,General Materials,,22/12/14,"3,138.01 ",,Highway Equipment & Materials
470598,AGGREGATE INDUSTRIES UK LIMITED,Technical,Places,Sub-contractor Services,,22/12/14,"33,582.98 ",,Highway Equipment & Materials
470598,COLAS LTD,Technical,Places,General Materials,,22/12/14,"1,669.80 ",,Highway Equipment & Materials�
470598,TARMAC CENTRAL LIMITED,Civil Engineers,"Economic Growth, Investment and Sustainability",Debits Goods Received,,22/12/14,361.82 ,,Highway Equipment & Materials�
470598,TARMAC CENTRAL LIMITED,Technical,Places,General Materials,,22/12/14,"5,213.61 ",,Highway Equipment & Materials�
470598,STALYBRIDGE READYMIX LTD,Technical,Places,General Materials,,22/12/14,"15,885.00 ",,Highway Equipment & Materials�
470598,AMBERON LTD,Technical,Places,Additional Hire,,22/12/14,"1,031.43 ",,Highway Equipment & Materials
470598,AMBERON LTD,Technical,Places,General Materials,,22/12/14,410.00 ,,Highway Equipment & Materials
470598,MARWOOD ELECTRICAL CO,Civil Engineers,"Economic Growth, Investment and Sustainability",Debits Goods Received,,22/12/14,"4,542.28 ",,Highway Equipment & Materials�
470598,MARWOOD ELECTRICAL CO,Technical,Places,General Materials,,22/12/14,"7,226.70 ",,Highway Equipment & Materials�
470598,STAINTON METAL CO LTD,Civil Engineers,"Economic Growth, Investment and Sustainability",Debits Goods Received,,22/12/14,"1,277.79 ",,Highway Equipment & Materials�
470598,STAINTON METAL CO LTD,Technical,Places,General Materials,,22/12/14,"1,660.88 ",,Highway Equipment & Materials�
470598,TOFCO-SMK LTD,Technical,Places,General Materials,,22/12/14,539.10 ,,Highway Equipment & Materials�
470598,WOLSELEY UK LTD,Civil Engineers,"Economic Growth, Investment and Sustainability",Debits Goods Received,,22/12/14,291.96 ,,Highway Equipment & Materials�
470598,WOLSELEY UK LTD,Technical,Places,General Materials,,22/12/14,"1,815.53 ",,Highway Equipment & Materials�
470598,MATHER AND STUART GENERATORS LTD,Technical,Places,Additional Hire,,22/12/14,560.00 ,,Horticultural
470598,P F CUSACK LTD,Civil Engineers,"Economic Growth, Investment and Sustainability",Debits Goods Received,,22/12/14,"1,376.70 ",,Horticultural
470598,P F CUSACK LTD,Neighbourhoods & Communities,"Community, Adult & Adults Early Intervention",General Materials,,22/12/14,63.00 ,,Horticultural
470598,ONE STOP SAFETY TRAINING,Technical,Places,Training Course Costs,,22/12/14,"1,800.00 ",,Human Resources
470598,P CASEY (ENVIRO) LTD,Technical,Places,Development Monies,,22/12/14,"10,520.16 ",,Public Bodies
470598,P P O'CONNOR,Multiple Heads of Service,Multiple Strategic Directorates,Tax Retained Sub Contractors,Business Payment,22/12/14,"-10,841.62 ",,Public Bodies
470598,P P O'CONNOR,Technical,Places,Sub-contractor Services,Business Payment,22/12/14,"54,208.08 ",,Public Bodies
470598,AJC ROAD SWEEPERS,Technical,Places,Sub-contractor Services,,22/12/14,"1,687.50 ",,Vehicles
470598,KONSTRUCTA HIRE LIMITED,Technical,Places,Additional Hire,,22/12/14,784.00 ,,"Works -  Construction, Repair & Maintenance"
470598,FAIRWAY LANDSCAPES LTD,Technical,Places,Sub-contractor Services,,22/12/14,"16,232.73 ",,"Works - Construction, Repair & Maintenance"
470598,PG FABRICATIONS,Multiple Heads of Service,Multiple Strategic Directorates,Tax Retained Sub Contractors,,22/12/14,-118.40 ,,"Works - Construction, Repair & Maintenance"
470598,PG FABRICATIONS,Technical,Places,Sub-contractor Services,,22/12/14,700.00 ,,"Works - Construction, Repair & Maintenance"
470598,W & B FORMWORK CO 1990,Technical,Places,Sub-contractor Services,,22/12/14,"12,704.00 ",,"Works - Construction, Repair & Maintenance"
470598,STOCKPORT MBC,Technical,Places,General Materials,,22/12/14,"4,840.93 ",,Unclassifiable
3250486,JOHNSTON SWEEPERS LTD,Technical,Places,General Materials,,04/12/14,505.98 ,,Environmental Services
3250486,JOHNSTON SWEEPERS LTD,Transport,"Economic Growth, Investment and Sustainability",Debits Goods Received,,04/12/14,100.35 ,,Environmental Services
3250486,DAWSON RENTALS SWEEPERS,Technical,Places,Additional Hire,,04/12/14,"2,680.00 ",,Highway Equipment & Materials
3250486,I H S HOSEMASTER,Technical,Places,General Materials,,04/12/14,"1,130.17 ",,Unclassifiable
3250486,G B OILS TA CARLTON FUELS,Transport,"Economic Growth, Investment and Sustainability",Diesel Fuel,,04/12/14,"42,646.80 ",,Redacted
3250486,DENNIS EAGLE LTD,Technical,Places,General Materials,,04/12/14,"3,201.84 ",,Vehicles
3250486,FREIGHT TRANSPORT ASSOCIATION,Technical,Places,Vehicle Inspection/Testing Costs,,04/12/14,931.25 ,,Vehicles
3250486,HI-Q TYRESERVICES,Technical,Places,General Materials,,04/12/14,109.00 ,,Vehicles
3250486,HI-Q TYRESERVICES,Technical,Places,Tyre Costs,,04/12/14,"2,196.77 ",,Vehicles
3250486,T & C MOTOR PANELS,Technical,Places,Insurance Claim Excess,,04/12/14,854.53 ,,Vehicles
3250486,F & G COMMERCIALS (OLDHAM) LIMITED,Technical,Places,General Materials,,04/12/14,591.18 ,,Vehicles
3250487,JOHNSTON SWEEPERS LTD,Technical,Places,General Materials,,11/12/14,"1,329.69 ",,Environmental Services
3250487,TERBERG MATEC UK LTD,Technical,Places,General Materials,,11/12/14,525.26 ,,Environmental Services
3250487,GEESINK NORBA LTD,Technical,Places,General Materials,,11/12/14,"3,545.85 ",,Environmental Services
3250487,ECODRIVE TRANSMISSIONS LTD,Technical,Places,General Materials,,11/12/14,"1,016.00 ",,Transport
3250487,ARNOLD PLANT HIRE LTD,Technical,Places,Additional Hire,,11/12/14,"1,570.00 ",,Unclassifiable
3250487,ARNOLD PLANT HIRE LTD,Technical,Places,Workshop Recharges including Misuse & Damage Costs,,11/12/14,601.50 ,,Unclassifiable
3250487,DENNIS EAGLE LTD,Technical,Places,General Materials,,11/12/14,"1,225.30 ",,Vehicles
3250487,DENNIS EAGLE LTD,Transport,"Economic Growth, Investment and Sustainability",Debits Goods Received,,11/12/14,571.18 ,,Vehicles
3250487,F G ROWLAND LTD,Technical,Places,Core Hire,,11/12/14,845.00 ,,Vehicles
3250487,M T KAILL(PLANT HIRE)LTD,Technical,Places,Additional Hire,,11/12/14,"2,100.00 ",,Vehicles
3250487,LPW TRUCKWASH LTD,Technical,Places,General Equipment Repair & Maintenance,,11/12/14,630.00 ,,Vehicles
3250487,HI-Q TYRESERVICES,Technical,Places,General Materials,,11/12/14,138.86 ,,Vehicles
3250487,HI-Q TYRESERVICES,Technical,Places,Tyre Costs,,11/12/14,"6,162.45 ",,Vehicles
3250487,BURNT TREE GROUP LIMITED,Technical,Places,Additional Hire,,11/12/14,"3,842.40 ",,Vehicles
3250487,BURNT TREE GROUP LIMITED,Technical,Places,Core Hire,,11/12/14,"1,140.00 ",,Vehicles
3250487,F & G COMMERCIALS (OLDHAM) LIMITED,Technical,Places,General Materials,,11/12/14,619.24 ,,Vehicles
3250487,SHB HIRE LTD,Technical,Places,Core Hire,,11/12/14,"13,694.25 ",,Vehicles
3250488,JCB INSURANCE SERVICES LTD,Technical,Places,General Materials,,18/12/14,"2,671.93 ",,Unclassifiable
3250488,ATS EUROMASTER LTD,Technical,Places,Tyre Costs,,18/12/14,"2,505.97 ",,Vehicles
3250489,JOHNSTON SWEEPERS LTD,Technical,Places,General Materials,,23/12/14,"3,033.20 ",,Environmental Services
3250489,STOCKPORT TRUCK CENTRE LTD,Technical,Places,General Materials,,23/12/14,718.33 ,,Human Resources
3250489,F. R. SHARROCK LIMITED,Technical,Places,General Materials,,23/12/14,101.68 ,,Public Bodies
3250489,F. R. SHARROCK LIMITED,Transport,"Economic Growth, Investment and Sustainability",Debits Goods Received,,23/12/14,968.22 ,,Public Bodies
3250489,I H S HOSEMASTER,Technical,Places,General Materials,,23/12/14,524.48 ,,Unclassifiable
3250489,G B OILS TA CARLTON FUELS,Transport,"Economic Growth, Investment and Sustainability",Diesel Fuel,,23/12/14,"18,759.54 ",,Redacted
3250489,G B OILS TA CARLTON FUELS,Transport,"Economic Growth, Investment and Sustainability",Petrol Fuel,,23/12/14,"2,398.71 ",,Redacted
3250489,GUNN JCB LTD,Technical,Places,General Materials,,23/12/14,681.21 ,,Vehicles
3250489,DENNIS EAGLE LTD,Technical,Places,General Materials,,23/12/14,"4,834.00 ",,Vehicles
3250489,FAUN ZOELLER (UK) LTD,Technical,Places,General Materials,,23/12/14,"1,489.92 ",,Vehicles
3250489,FAUN ZOELLER (UK) LTD,Transport,"Economic Growth, Investment and Sustainability",Debits Goods Received,,23/12/14,611.00 ,,Vehicles
3250489,LPW TRUCKWASH LTD,Technical,Places,General Equipment Repair & Maintenance,,23/12/14,850.50 ,,Vehicles
3250489,A & J MOTORSPARES,Technical,Places,Debits Goods Received,,23/12/14,47.85 ,,Vehicles
3250489,A & J MOTORSPARES,Technical,Places,General Equipment Purchase,,23/12/14,26.28 ,,Vehicles
3250489,A & J MOTORSPARES,Technical,Places,General Materials,,23/12/14,570.06 ,,Vehicles
3250489,AUTO BATTERY SERVICE LTD,Technical,Places,Consumable Materials,,23/12/14,132.24 ,,Vehicles
3250489,AUTO BATTERY SERVICE LTD,Technical,Places,General Equipment Purchase,,23/12/14,499.99 ,,Vehicles
3250489,AUTO BATTERY SERVICE LTD,Technical,Places,General Materials,,23/12/14,356.29 ,,Vehicles
3250489,AUTO BATTERY SERVICE LTD,Transport,"Economic Growth, Investment and Sustainability",Debits Goods Received,,23/12/14,315.70 ,,Vehicles
3250489,DIRECT FILTER/ PARTS SUPPLY,Technical,Places,General Materials,,23/12/14,292.33 ,,Vehicles
3250489,DIRECT FILTER/ PARTS SUPPLY,Transport,"Economic Growth, Investment and Sustainability",Debits Goods Received,,23/12/14,606.34 ,,Vehicles
3250489,HI-Q TYRESERVICES,Technical,Places,Tyre Costs,,23/12/14,"3,132.67 ",,Vehicles
3250489,F & G COMMERCIALS (OLDHAM) LIMITED,Technical,Places,General Materials,,23/12/14,614.68 ,,Vehicles
3250489,OMC FORD OLDHAM,Technical,Places,General Materials,,23/12/14,"1,394.75 ",,Vehicles
3250489,SHB HIRE LTD,Technical,Places,Replacement Hire,,23/12/14,465.15 ,,Vehicles
3250489,SHB HIRE LTD,Technical,Places,Workshop Recharges including Misuse & Damage Costs,,23/12/14,100.00 ,,Vehicles
5158542,ENVIRONMENT AGENCY NW,Technical,Places,Land Drainage Levy,,22/12/14,"25,913.75 ",,Environmental Services
5158586,GREATER MANCHESTER COMBINED AUTHORITY,Technical,Places,Passenger Transport Levy,,11/12/14,"1,614,500.00 ",,Unclassifiable
5158725,GREATER MANCHESTER WASTE DISPOSAL AUTH.,Environmental Services,Places,GMC Waste Disposal Levy,,18/12/14,"1,478,750.00 ",,Environmental Services
5168942,NORTHGATE INFORMATION SOLUTIONS UK LTD,Sustainable Growth,Places,Computer Hardware Maintenance Costs,,11/12/14,"1,650.65 ",,Information Communication Technology
5169289,NHS TAMESIDE AND GLOSSOP CCG,Children's Services,Childrens Services,Professional Services,,01/12/14,"166,753.00 ",,Medical
5173122,ROYAL MAIL GROUP PLC,Exchequer,Director of Finance,Postages,,08/12/14,"2,071.31 ",,Mail Services
5174274,FREEDOM PROGRAMME LTD,Strategy & Early Intervention,Childrens Services,Training Course Costs,,08/12/14,900.00 ,,Human Resources
5176484,ROYAL MAIL GROUP PLC,Exchequer,Director of Finance,Postages,,01/12/14,"1,685.52 ",,Mail Services
5176944,PHS GROUP PLC,Environmental Services,"Economic Growth, Investment and Sustainability",Refuse Domestic Bin Purchases,,22/12/14,"2,534.35 ",,Cleaning & Janitorial
5178410,AIDSERVICE LTD,Adult Services,"Community, Adult & Adults Early Intervention",Adaptations - Small Jobs,,22/12/14,731.30 ,,Unclassifiable
5178483,GETRONICS UNIFIED COMMUNICATIONS UK LIMITED,Digital Tameside,Places,Computer Software,,01/12/14,"11,676.60 ",,Information Communication Technology
5178717,NEW CHARTER HOUSING TRUST GROUP,Neighbourhoods & Communities,"Community, Adult & Adults Early Intervention",Lettings/Waiting List,,04/12/14,"19,679.25 ",,Social Community Care Supplies & Services
5179161,NORTHGATE INFORMATION SOLUTIONS UK LTD,Neighbourhoods & Communities,"Community, Adult & Adults Early Intervention",Computer Hardware Purchase,,15/12/14,"1,532.29 ",,Information Communication Technology
5179455,ROYAL MAIL GROUP PLC,Exchequer,Director of Finance,Postages,,01/12/14,"2,206.95 ",,Mail Services
5179457,GREATER MANCHESTER POLICE,Children's Services,Childrens Services,Professional Consultancy Services,,15/12/14,"1,472.50 ",,Unclassifiable
5179509,SPUR INFORMATION SOLUTIONS LIMITED,Technical,Places,Traffic Flow Management,,08/12/14,"19,500.00 ",,Highway Equipment & Materials�
5179652,ADDICTION DEPENDENCY SOLUTIONS (ADS),Public Health,Public Health,Professional Services,,01/12/14,"5,019.19 ",,Consultancy
5179672,STOCKPORT NHS FOUNDATION TRUST,Public Health,Public Health,Professional Interpreter Services,,19/12/14,"3,013.36 ",,Medical
5179694,STEP AHEAD RESOURCE SERVICES,Children's Services,Childrens Services,Living Without Formal Support,,23/12/14,850.00 ,,Social Community Care
5179854,LOXLEY HOUSE DEVELOPMENT TRUST ASSOCIATION,Adults Early Intervention,"Community, Adult & Adults Early Intervention",Development Monies,,03/12/14,500.00 ,,Financial Services
5179907,THE FURNISHING SERVICE LTD,Neighbourhoods & Communities,"Community, Adult & Adults Early Intervention",Fixtures & Fittings Purchase,,11/12/14,"1,095.13 ",,Furniture
5179988,ROSSENDALE SCHOOL PRIORY,Education Services,Childrens Services,Voluntary Organisations Fees, ,15/12/14,"25,500.00 ",,Education
5180009,THE CARE TEAM LTD,Neighbourhoods & Communities,"Community, Adult & Adults Early Intervention",Professional Medical Services,,10/12/14,"1,200.00 ",,Unclassifiable
5180061,COMMUNITY AND VOLUNTARY ACTION TAMESIDE,Adults Early Intervention,"Community, Adult & Adults Early Intervention",Development Monies,,04/12/14,"22,625.50 ",,Financial Services
5180143,TAMESIDE COMMUNITY DROP-IN,Adults Early Intervention,"Community, Adult & Adults Early Intervention",Development Monies,,08/12/14,500.00 ,,Unclassifiable
5180157,THORNLEY HOUSE PATIENT PARTICIPATION GROUP,Adults Early Intervention,"Community, Adult & Adults Early Intervention",Development Monies,,01/12/14,500.00 ,,Unclassifiable
5180175,MAKING SPACE,Adult Services,"Community, Adult & Adults Early Intervention",Voluntary Organisations Fees,,01/12/14,"20,735.75 ",,Social Community Care Supplies & Services
5180178,TYNETEC,Adult Services,"Community, Adult & Adults Early Intervention",It Equipment,,17/12/14,"2,269.50 ",,Social Community Care
5180261,NHS TAMESIDE AND GLOSSOP CCG,Chief Executive,Director of Finance,Indirect Employee Pay Expenditure,,01/12/14,"5,443.40 ",,Medical
5180272,NHS TAMESIDE AND GLOSSOP CCG,Chief Executive,Director of Finance,Indirect Employee Pay Expenditure,,01/12/14,"4,797.65 ",,Medical
5180325,CRAEMER UK LTD,Environmental Services,Places,Refuse Domestic Bin Purchases,,01/12/14,"11,774.40 ",,Environmental Services
5180340,CLOVERLEAF ADVOCACY 2000 LTD,Adult Services,"Community, Adult & Adults Early Intervention",Professional Services,,01/12/14,"12,408.34 ",,Social Community Care Supplies & Services
5180359,HOUSE OF IMAGES,Neighbourhoods & Communities,"Community, Adult & Adults Early Intervention",Purchase Books,,03/12/14,500.00 ,,Facilities & Management Services
5180396,NEW IMAGE(PUBLIC RELATIONS) LTD,Technical,Places,Professional Entertainment Services,,04/12/14,"44,257.30 ",,Facilities & Management Services
5180590,CO-OPERATION TAMESIDE,Adults Early Intervention,"Community, Adult & Adults Early Intervention",Development Monies,,10/12/14,500.00 ,,Unclassifiable
5180610,PENNINE CARE NHS TRUST,Public Health,Public Health,Professional Services,,04/12/14,"39,958.33 ",,Social Community Care Supplies & Services
5180637,J P KELSEY PLUMBING & HEATING LTD,Housing,"Economic Growth, Investment and Sustainability",Improvement Grants - Final Mandatory,,03/12/14,"3,688.00 ",,Building Construction Materials
5180676,TRIBAL EDUCATION LTD,Strategy & Early Intervention,Childrens Services,Computer Software Maintenance Costs,,10/12/14,900.00 ,,Information Communication Technology
5180775,GRAPHICS - BURNLEY COUNCIL,Neighbourhoods & Communities,"Community, Adult & Adults Early Intervention",Contingency Provisions,,01/12/14,"2,680.00 ",,Financial Services
5180809,THE GUINNESS PARTNERSHIP LTD,Adult Services,"Community, Adult & Adults Early Intervention",Non-Authority Accommodation Rental,,04/12/14,"3,903.20 ",,Housing Management
5180817,THE GUINNESS PARTNERSHIP LTD,Adult Services,"Community, Adult & Adults Early Intervention",Non-Authority Accommodation Rental,,04/12/14,"1,172.45 ",,Housing Management
5180830,LEISURE SKATE LIMITED,Neighbourhoods & Communities,"Community, Adult & Adults Early Intervention",Professional Entertainment Services,,04/12/14,"2,062.50 ",,Leisure Services
5180831,GROUNDWORK LANDSCAPES LIMITED,Operations,Places,Project Costs,,03/12/14,"10,967.78 ",,"Works - Construction, Repair & Maintenance"
5180834,SPECIALISED HOMES AND LODGINGS LTD,Children's Services,Childrens Services,Living With Formal Support,,23/12/14,"3,214.28 ",,Unclassifiable
5180839,CDR GROUP,Sustainable Growth,Places,Computer Hardware Maintenance Costs,,04/12/14,"1,036.50 ",,Information Communication Technology
5180839,CDR GROUP,Technical,Places,Computer Hardware Maintenance Costs,,04/12/14,773.50 ,,Information Communication Technology
5180840,NORTHGATE INFORMATION SOLUTIONS UK LTD,Neighbourhoods & Communities,"Community, Adult & Adults Early Intervention",Computer Hardware Purchase,,01/12/14,"1,754.94 ",,Information Communication Technology
5180855,RIGBY TAYLOR LTD,Operations,Places,General Materials,,04/12/14,687.96 ,,Horticultural
5180861,CALLROUND LIMITED,Education Services,Childrens Services,Professional Services,,04/12/14,"1,400.00 ",,Public Bodies
5180863,OSMIS EDUCATION LIMITED,Digital Tameside,Places,Professional Services,,04/12/14,"8,965.00 ",,Information Communication Technology
5180924,COOLSPIRIT LTD,Digital Tameside,Places,Computer Hardware Maintenance Costs,,08/12/14,"1,690.76 ",,Information Communication Technology
5180942,BROXAP LIMITED,Operations,Places,General Materials,,04/12/14,"1,980.00 ",,Highway Equipment & Materials�
5181006,L&R ROADLINES LTD,Cultural and Customer Services,"Community,Environmental,Adult and Health Services",Road Marking Works,,03/12/14,382.70 ,,Highway Equipment & Materials
5181006,L&R ROADLINES LTD,Engineers Client,"Economic Growth, Investment and Sustainability",Road Marking Works,,03/12/14,179.40 ,,Highway Equipment & Materials
5181006,L&R ROADLINES LTD,Technical,Places,Engineers Works,,03/12/14,445.60 ,,Highway Equipment & Materials
5181006,L&R ROADLINES LTD,Technical,Places,HRA Repairs Engineers Recharge,,03/12/14,"2,844.52 ",,Highway Equipment & Materials
5181006,L&R ROADLINES LTD,Technical,Places,Road Markings,,03/12/14,386.46 ,,Highway Equipment & Materials
5181010,L&R ROADLINES LTD,Technical,Places,Roadmarkings Engineers Recharge,,03/12/14,"1,294.02 ",,Highway Equipment & Materials
5181059,VIGLEN LTD,Digital Tameside,Places,It Equipment,,04/12/14,"25,920.00 ",,Information Communication Technology
5181064,CHARANGA LTD,Education Services,Childrens Services,Professional Services,,10/12/14,"7,760.00 ",,Leisure Services
5181087,NHS GREATER MANCHESTER CSU,Public Health,Public Health,Professional Services,,03/12/14,"3,026.72 ",,Public Bodies
5181101,RICOH UK,Multiple Heads of Service,Multiple Strategic Directorates,Debits,,04/12/14,"15,185.90 ",,Facilities & Management Services
5181102,AGGREGATE INDUSTRIES UK LIMITED,Technical,Places,HRA Repairs Engineers Recharge,,01/12/14,"14,608.61 ",,Highway Equipment & Materials
5181102,AGGREGATE INDUSTRIES UK LIMITED,Capital Prog,(blank),Road Marking Works,,01/12/14,"97,077.35 ",,Highway Equipment & Materials
5181112,BERTRAM LIBRARY SERVICES,Neighbourhoods & Communities,"Community, Adult & Adults Early Intervention",Purchase Books,,03/12/14,"10,523.56 ",,Education
5181143,MISS JULIA CHEETHAM,Children's Services,Childrens Services,Legal Fees,Business Payment,04/12/14,650.00 ,,Unclassifiable
5181150,SALFORD CITY COUNCIL,Children's Services,Childrens Services,Training Course Costs,,01/12/14,600.00 ,,Unclassifiable
5181166,NORTH WEST EMPLOYERS,Children's Services,Childrens Services,"Marketing, Publicity and Recruitment",,15/12/14,"3,041.35 ",,Human Resources
5181226,VODAFONE,Multiple Heads of Service,Multiple Strategic Directorates,Debits,,10/12/14,"1,950.00 ",,Information Communication Technology
5181228,VODAFONE,Multiple Heads of Service,Multiple Strategic Directorates,Debits,,10/12/14,"1,890.18 ",,Information Communication Technology
5181289,S.G. WHITFIELD,Children's Services,Childrens Services,Professional Services,Business Payment,03/12/14,"2,500.00 ",,Redacted
5181326,WILLIAMS WOODWARD LTD,Resource Management,Director of Finance,Professional Consultancy Services,,08/12/14,"4,980.00 ",,Redacted
5181353,CREATIVE SUPPORT LTD,Adult Services,"Community, Adult & Adults Early Intervention",Homecare Fees,,10/12/14,"124,890.83 ",,Social Community Care Supplies & Services
5181355,JOHN D PEATFIELD T/A SAUNTERING,Education Services,Childrens Services,Training Course Costs,Business Payment,08/12/14,"2,015.75 ",,Unclassifiable
5181359,CREATIVE SUPPORT LTD,Adult Services,"Community, Adult & Adults Early Intervention",Homecare Fees,,10/12/14,"84,992.92 ",,Social Community Care Supplies & Services
5181365,CREATIVE SUPPORT LTD,Adult Services,"Community, Adult & Adults Early Intervention",Independent Sector Care Fees,,10/12/14,"67,669.36 ",,Social Community Care Supplies & Services
5181367,CREATIVE SUPPORT LTD,Adult Services,"Community, Adult & Adults Early Intervention",Homecare Fees,,10/12/14,"79,445.25 ",,Social Community Care Supplies & Services
5181419,HORSE AND BAMBOO THEATRE COMPANY,Neighbourhoods & Communities,"Community, Adult & Adults Early Intervention",Professional Entertainment Services,,08/12/14,"1,000.00 ",,Leisure Services
5181487,ROYAL MAIL GROUP PLC,Exchequer,Director of Finance,Postages,,01/12/14,"1,161.65 ",,Mail Services
5181498,LAVAT CONSULTING LIMITED,Other Services,Director of Finance,Professional Services,,08/12/14,"1,630.80 ",,Consultancy
5181501,LOWE MARTIAL ARTS LTD,Education Services,Childrens Services,"Activity (Materials, Trips)",,04/12/14,"1,820.00 ",,Redacted
5181551,SICO EUROPE LIMITED,Asset Management and Investment Partnership Management,"Economic Growth, Investment and Sustainability",Purchase Heavy Catering Equipment,,03/12/14,"1,394.00 ",,Furniture
5181554,LEISURE SKATE LIMITED,Neighbourhoods & Communities,"Community, Adult & Adults Early Intervention",Professional Entertainment Services,,11/12/14,"4,812.50 ",,Leisure Services
5181561,ALLIANCE DISPOSABLES LTD,Adult Services,"Community, Adult & Adults Early Intervention",Cleaning Materials,,11/12/14,628.00 ,,Cleaning & Janitorial
5181605,GROUNDWORK LANDSCAPES LIMITED,District Assemblies,"Community,Environmental,Adult and Health Services",General Materials,,11/12/14,825.00 ,,"Works - Construction, Repair & Maintenance"
5181618,STEP AHEAD RESOURCE SERVICES,Children's Services,Childrens Services,Living With Formal Support,,23/12/14,750.00 ,,Social Community Care
5181628,NHS GREATER MANCHESTER CSU,Public Health,Public Health,Professional Services,,03/12/14,"3,026.72 ",,Public Bodies
5181637,MANCHESTER MEDICAL SERVICES LTD,Neighbourhoods & Communities,"Community, Adult & Adults Early Intervention",Professional Entertainment Services,,11/12/14,576.00 ,,Medical
5181647,STAFF CARE SERVICES,Adult Services,"Community, Adult & Adults Early Intervention",Professional Consultancy Services,,15/12/14,"1,395.00 ",,Human Resources
5181647,STAFF CARE SERVICES,Adult Services,"Community, Adult & Adults Early Intervention",Staff Travel Costs,,15/12/14,57.12 ,,Human Resources
5181649,T KIRK FORESTRY,Operations,Places,Training Course Costs,,04/12/14,"1,813.25 ",,Horticultural
5181658,POSITIVE STEPS OLDHAM,Strategy & Early Intervention,Childrens Services,Professional Services,,11/12/14,"36,986.30 ",,Unclassifiable
5181661,MONO ALARM INSTALLATIONS LTD.,Tameside Investment Partnership,Places,Security Equipment,,01/12/14,534.00 ,,Facilities & Management Services
5181662,EVENT TECHNICAL SUPPORT LTD,Democratic Processes,Director of Finance,Professional Entertainment Services,,15/12/14,"3,350.00 ",,Leisure Services
5181732,HEALTH DEVELOPMENT CONSULTANCY LTD,Public Health,Public Health,Professional Services,,10/12/14,"2,800.00 ",,Consultancy
5181739,NEW IMAGE(PUBLIC RELATIONS) LTD,Technical,Places,Professional Entertainment Services,,17/12/14,"34,726.60 ",,Facilities & Management Services
5181756,THE DUKE OF EDINBURGH AWARD,Neighbourhoods & Communities,"Community, Adult & Adults Early Intervention",Training Course Costs,,11/12/14,550.00 ,,Financial Services
5181775,CRAEMER UK LTD,Environmental Services,Places,Refuse Domestic Bin Purchases,,11/12/14,"12,472.50 ",,Environmental Services
5181779,CRAEMER UK LTD,Environmental Services,Places,Refuse Domestic Bin Purchases,,11/12/14,"14,647.50 ",,Environmental Services
5181795,TURNING POINT SERVICES LTD,Adult Services,"Community, Adult & Adults Early Intervention",Independent Sector Care Fees,,15/12/14,"46,566.67 ",,Social Community Care
5181835,BOLTON WHITES HOTEL LTD,Children's Services,Childrens Services,Professional Child Services,,01/12/14,"1,586.67 ",,Unclassifiable
5181839,PRIME LIFE LTD,Adult Services,"Community, Adult & Adults Early Intervention",Residential Home Short Stay Fees,,11/12/14,"3,238.35 ",,Social Community Care Supplies & Services
5181870,HEARTS AND FLOWERS,INetwork,Places,"Activity (Materials, Trips)",,15/12/14,540.00 ,,Unclassifiable
5181875,GL EDUCATION GROUP,Public Health,Public Health,Text Books Periodicals and Newspapers,,04/12/14,938.60 ,,Education
5181923,CREATIVE SUPPORT LTD,Adult Services,"Community, Adult & Adults Early Intervention",Age Concern Fees,,10/12/14,"28,726.66 ",,Social Community Care Supplies & Services
5181946,TYNETEC,Adult Services,"Community, Adult & Adults Early Intervention",It Equipment,,15/12/14,588.05 ,,Social Community Care
5181951,TRINITY COLLEGE LONDON,Neighbourhoods & Communities,"Community, Adult & Adults Early Intervention",Professional Services,,15/12/14,"1,040.00 ",,Non 3rd Party spend  
5181956,MCGRATH MEDIA T/A THE PRINT WORKSHOP LTD,Technical,Places,Statutory Advertising,,03/12/14,800.00 ,,Facilities & Management Services
5181977,ADVOCACY EXPERIENCE LTD,Adult Services,"Community, Adult & Adults Early Intervention",Professional Services,,15/12/14,"7,518.62 ",,Social Community Care Supplies & Services
5181979,W F HOWES LTD,Multiple Heads of Service,Multiple Strategic Directorates,Purchase Books,,11/12/14,"3,500.00 ",,Education
5181980,TARGET ESOLUTIONS LTD,Exchequer,Director of Finance,Subscriptions,,15/12/14,"2,810.30 ",,Unclassifiable
5181982,NCER CIC,Children's Administration,Childrens Services,Computer Software Maintenance Costs,,17/12/14,"1,256.20 ",,Consultancy
5181983,TYNETEC,Adult Services,"Community, Adult & Adults Early Intervention",It Equipment,,15/12/14,"2,326.00 ",,Social Community Care
5182007,GWENALT CONSULTING LIMITED,Public Health,Public Health,Professional Services,,17/12/14,"10,000.00 ",,Redacted
5182008,ELECTRICITY NORTH WEST LTD,Technical,Places,Reactive Works Engineers Recharge,,01/12/14,674.98 ,,Utilities
5182038,PROGRESS CARE HOUSING ASSOCIATION LIMITED,Adult Services,"Community, Adult & Adults Early Intervention",Non-Authority Accommodation Rental,,01/12/14,"5,316.08 ",,Housing Management
5182068,VIRGIN BLACKPOOL,Public Health,Public Health,Professional Services,,04/12/14,"2,756.00 ",,Consultancy
5182070,HOMESTART TAMESIDE & OLDHAM,Public Health,Public Health,Professional Services,,11/12/14,"16,666.67 ",,Social Community Care Supplies & Services
5182088,HANDICARE LIMITED,Housing,"Economic Growth, Investment and Sustainability",Improvement Grants - Final Mandatory,,11/12/14,"1,731.00 ",,Social Community Care
5182091,HANDICARE LIMITED,Housing,"Economic Growth, Investment and Sustainability",Improvement Grants - Final Mandatory,,18/12/14,"4,401.00 ",,Social Community Care
5182093,WESSEX LIFT CO. LIMITED,Housing,"Economic Growth, Investment and Sustainability",Improvement Grants - Final Mandatory,,04/12/14,"10,415.00 ",,"Works - Construction, Repair & Maintenance"
5182099,BROADWAY BUILDING CONTRACTORS (OLDHAM) LTD,Housing,"Economic Growth, Investment and Sustainability",Improvement Grants - Final Mandatory,,04/12/14,"11,613.53 ",,Redacted
5182101,GIBSONS GARDEN MACHINERY LIMITED,Operations,Places,Horticultural Equipment,,18/12/14,895.00 ,,Horticultural
5182105,THE FURNISHING SERVICE LTD,Neighbourhoods & Communities,"Community, Adult & Adults Early Intervention",Fixtures & Fittings Purchase,,18/12/14,"1,169.12 ",,Furniture
5182108,THE FURNISHING SERVICE LTD,Neighbourhoods & Communities,"Community, Adult & Adults Early Intervention",Fixtures & Fittings Purchase,,18/12/14,544.10 ,,Furniture
5182113,THE FURNISHING SERVICE LTD,Neighbourhoods & Communities,"Community, Adult & Adults Early Intervention",Fixtures & Fittings Purchase,,18/12/14,917.90 ,,Furniture
5182116,THE FURNISHING SERVICE LTD,Neighbourhoods & Communities,"Community, Adult & Adults Early Intervention",Fixtures & Fittings Purchase,,18/12/14,744.91 ,,Furniture
5182128,ROCOM,Tameside Investment Partnership,Places,It Equipment,,17/12/14,"4,935.00 ",,Information Communication Technology
5182132,THE FURNISHING SERVICE LTD,Neighbourhoods & Communities,"Community, Adult & Adults Early Intervention",Fixtures & Fittings Purchase,,18/12/14,716.88 ,,Furniture
5182133,PAKFLATT (UK) LTD,Borough Solicitor,Director of Governance,Purchase General Office Equipment,,18/12/14,"3,240.00 ",,Unclassifiable
5182145,EDUCATION FUNDING AGENCY,Asset Management and Investment Partnership Management,"Economic Growth, Investment and Sustainability",Furniture And Fittings,,04/12/14,"49,209.00 ",,Redacted
5182147,DBS,People & Performance,Director of Governance,Professional services,,04/12/14,"13,508.00 ",,Human Resources
5182150,HMS DECORATIVE SURFACING LTD,Technical,Places,Anti-skid Surface Repairs,,01/12/14,579.76 ,,Building Construction Materials
5182150,HMS DECORATIVE SURFACING LTD,Technical,Places,Carriageway Surface Dressing Works,,01/12/14,629.16 ,,Building Construction Materials
5182163,GV MULTI-MEDIA,Neighbourhoods & Communities,"Community, Adult & Adults Early Intervention",Professional Entertainment Services,,17/12/14,"8,684.00 ",,Information Communication Technology
5182167,SCHNEIDER ELECTRIC EMS UK LIMITED,Technical,Places,Building Maintenance,,15/12/14,771.50 ,,Unclassifiable
5182169,TRIBAL EDUCATION LTD,Strategy & Early Intervention,Childrens Services,Professional Consultancy Services,,15/12/14,"1,050.00 ",,Information Communication Technology
5182170,IDOX SOFTWARE LIMITED,"Media, Marketing & Communications",Director of Governance,Subscriptions,,17/12/14,"7,262.50 ",,Information Communication Technology
5182170,IDOX SOFTWARE LIMITED,Sustainable Growth,Places,Computer Software,,17/12/14,"7,262.50 ",,Information Communication Technology
5182171,THE LANDSCAPE CENTRE,Neighbourhoods & Communities,"Community, Adult & Adults Early Intervention",Grants to Organisations,,18/12/14,"2,100.00 ",,"Works - Construction, Repair & Maintenance"
5182177,AXIOMATIC TECHNOLOGY LIMITED,Technical,Places,Computer Hardware Maintenance Costs,,18/12/14,"1,600.00 ",,Information Communication Technology
5182191,MACK 4 LIMITED,Housing,"Economic Growth, Investment and Sustainability",Improvement Grants - Final Mandatory,,11/12/14,"3,700.00 ",,"Works - Construction, Repair & Maintenance"
5182211,WILLIAMS WOODWARD LTD,Resource Management,Director of Finance,Professional Consultancy Services,,18/12/14,"6,170.00 ",,Redacted
5182212,JONES LIGHTING LTD,Technical,Places,Street Lighting,,11/12/14,463.98 ,,Highway Equipment & Materials�
5182212,JONES LIGHTING LTD,Technical,Places,Traffic Flow Management,,11/12/14,349.88 ,,Highway Equipment & Materials�
5182258,CO-OPERATIVE FUNERAL CARE,Adult Services,"Community, Adult & Adults Early Intervention",Miscellaneous Expenses,,17/12/14,"3,549.00 ",,Unclassifiable
5182274,VISION FOR EDUCATION LIMITED,Education Services,Childrens Services,Agency Staff,,04/12/14,900.00 ,,Education
5182330,MEDICO NURSING AND HOMECARE,Adult Services,"Community, Adult & Adults Early Intervention",Homecare Fees,,01/12/14,"11,877.91 ",,Social Community Care Supplies & Services
5182336,JULIE STIRPE ASSOCIATES LTD,Children's Services,Childrens Services,Professional Services,,01/12/14,"1,089.50 ",,Consultancy
5182339,MISS KATE BRAMALL,Children's Services,Childrens Services,Legal Fees,Business Payment,18/12/14,950.00 ,,Unclassifiable
5182340,THE CHESHIRE & GREATER MANCHESTER COMMUNITY REHABILITATION COMPANY LTD,Neighbourhoods & Communities,"Community, Adult & Adults Early Intervention",Supporting People Gross Contract,,15/12/14,"13,437.52 ",,Unclassifiable
5182341,CARE UK HOMECARE,Adult Services,"Community, Adult & Adults Early Intervention",Homecare Fees,,01/12/14,"28,589.97 ",,Social Community Care Supplies & Services
5182343,NEW CHARTER HOUSING TRUST GROUP,Public Health,Public Health,Professional Services,,01/12/14,"12,000.00 ",,Social Community Care Supplies & Services
5182345,RAYMOND C HARRISON BUILDERS,Housing,"Economic Growth, Investment and Sustainability",Improvement Grants - Final Mandatory,,18/12/14,"5,073.00 ",,"Works -  Construction, Repair & Maintenance"
5182348,MACK 4 LIMITED,Housing,"Economic Growth, Investment and Sustainability",Improvement Grants - Final Mandatory,,11/12/14,"3,900.00 ",,"Works - Construction, Repair & Maintenance"
5182350,CARE UK HOMECARE,Adult Services,"Community, Adult & Adults Early Intervention",Homecare Fees,,01/12/14,"113,208.33 ",,Social Community Care Supplies & Services
5182351,TAMESIDE LINK,Adult Services,"Community, Adult & Adults Early Intervention",Voluntary Organisations Fees,,01/12/14,"15,086.32 ",,Social Community Care Supplies & Services
5182364,THE ENVIRONMENTAL PROTECTION GROUP LTD,Environmental Services,"Economic Growth, Investment and Sustainability",Professional Consultancy Services,,18/12/14,750.00 ,,Consultancy
5182369,MR KELVIN RUTLEDGE QC,Children's Services,Childrens Services,Legal Fees,Business Payment,01/12/14,"5,355.60 ",,Unclassifiable
5182370,KINGS CHAMBERS,Sustainable Growth,Places,Legal Fees,,15/12/14,500.00 ,,Public Bodies
5182375,THE ENVIRONMENTAL PROTECTION GROUP LTD,Environmental Services,"Economic Growth, Investment and Sustainability",Professional Consultancy Services,,18/12/14,750.00 ,,Consultancy
5182389,T & C MOTOR PANELS,Technical,Places,General Materials,,11/12/14,584.77 ,,Vehicles
5182471,ROGER HANNAH & CO,Sustainable Growth,Places,Professional Services,,01/12/14,"1,020.00 ",,Legal Services
5182474,TRIANGLE CARE GROUP,Children's Services,Childrens Services,Living With Formal Support,,15/12/14,900.00 ,,Redacted
5182500,THE FURNISHING SERVICE LTD,Neighbourhoods & Communities,"Community, Adult & Adults Early Intervention",Fixtures & Fittings Purchase,,23/12/14,697.77 ,,Furniture
5182530,TAMESIDE COLLEGE,People & Performance,Director of Governance,Training Course Costs,,04/12/14,500.00 ,,Unclassifiable
5182608,TRINITY MIRROR NORTH PUBLISHING LTD,Exchequer,Director of Finance,Printing And Stationery,,01/12/14,"1,050.00 ",,Public Bodies
5182629, ,Education Services,Childrens Services,Professional Services,Redacted Supplier,01/12/14,"11,897.06 ",,Redacted
5182648,DOMAIN CARE NORTH WEST LTD,Adult Services,"Community, Adult & Adults Early Intervention",Homecare Fees,,08/12/14,"2,100.00 ",,Social Community Care
5182650,DOMAIN CARE NORTH WEST LTD,Adult Services,"Community, Adult & Adults Early Intervention",Homecare Fees,,08/12/14,639.60 ,,Social Community Care
5182652,DOMAIN CARE NORTH WEST LTD,Adult Services,"Community, Adult & Adults Early Intervention",Homecare Fees,,08/12/14,"1,440.00 ",,Social Community Care
5182656,DOMAIN CARE NORTH WEST LTD,Adult Services,"Community, Adult & Adults Early Intervention",Homecare Fees,,08/12/14,799.50 ,,Social Community Care
5182661,CARE UK HOMECARE,Adult Services,"Community, Adult & Adults Early Intervention",Homecare Fees,,01/12/14,"5,309.16 ",,Social Community Care Supplies & Services
5182669,CREATIVE SUPPORT LTD,Adult Services,"Community, Adult & Adults Early Intervention",Homecare Fees,,01/12/14,"3,291.24 ",,Social Community Care Supplies & Services
5182670,CREATIVE SUPPORT LTD,Adult Services,"Community, Adult & Adults Early Intervention",Homecare Fees,,01/12/14,"15,291.50 ",,Social Community Care Supplies & Services
5182680,THE FURNISHING SERVICE LTD,Neighbourhoods & Communities,"Community, Adult & Adults Early Intervention",Fixtures & Fittings Purchase,,23/12/14,"1,377.80 ",,Furniture
5182692,AGE UK TAMESIDE,Adult Services,"Community, Adult & Adults Early Intervention",Age Concern Fees,,03/12/14,"11,473.22 ",,Environmental Services
5182693,AGE UK TAMESIDE,Adults Early Intervention,"Community, Adult & Adults Early Intervention",Age Concern Fees,,03/12/14,"4,660.00 ",,Environmental Services
5182694,AGE UK TAMESIDE,Adults Early Intervention,"Community, Adult & Adults Early Intervention",Professional Services,,08/12/14,"19,166.67 ",,Environmental Services
5182695,AGE UK TAMESIDE,Adults Early Intervention,"Community, Adult & Adults Early Intervention",Professional Services,,03/12/14,"6,930.00 ",,Environmental Services
5182696,AGE UK TAMESIDE,Adults Early Intervention,"Community, Adult & Adults Early Intervention",Age Concern Fees,,03/12/14,"3,501.67 ",,Environmental Services
5182707,VISION BEYOND AUTISM CIC,Education Services,Childrens Services,Voluntary Organisations Fees,,08/12/14,"9,941.75 ",,Social Community Care Supplies & Services
5182709,ADDICTION DEPENDENCY SOLUTIONS (ADS),Public Health,Public Health,Professional Services,,23/12/14,"5,019.19 ",,Consultancy
5182715,BAAF REGISTERED CHARITY,Children's Services,Childrens Services,Professional Services,,04/12/14,"2,591.00 ",,Social Community Care Supplies & Services
5182733,,Children's Services,Childrens Services,Cash Grants,Redacted Supplier,17/12/14,"3,947.50 ",,Redacted
5182734,,Children's Services,Childrens Services,Cash Grants,Redacted Supplier,17/12/14,"3,947.50 ",,Redacted
5182735,,Children's Services,Childrens Services,Cash Grants,Redacted Supplier,17/12/14,"3,947.50 ",,Redacted
5182746,DIRECT BUSINESS EQUIPMENT LTD,Adult Services,"Community, Adult & Adults Early Intervention",Security Equipment,,01/12/14,597.50 ,,Financial Services
5182751,NPOWER LIMITED,Technical,Places,Electricity,,01/12/14,583.25 ,,Utilities
5182761,ROYAL MAIL GROUP PLC,Exchequer,Director of Finance,Postages,,08/12/14,"1,973.23 ",,Mail Services
5182775,TAMESIDE COLLEGE,People & Performance,Director of Governance,Training Course Costs,,01/12/14,500.00 ,,Unclassifiable
5182782,RANDSTAD EDUCATION LIMITED,Education Services,Childrens Services,Refreshments,,15/12/14,575.00 ,,Education
5182792,LOUISE LIGHTFOOT,Education Services,Childrens Services,Professional Services,Business Payment,23/12/14,"2,000.00 ",,Redacted
5182793,REGENDA LIMITED,Adult Services,"Community, Adult & Adults Early Intervention",Non-Authority Accommodation Rental,,17/12/14,"2,169.66 ",,Housing Management
5182824,FRESH START INDEPENDENCE PROJECT LTD,Children's Services,Childrens Services,Living With Formal Support,,04/12/14,"1,207.31 ",,Social Community Care Supplies & Services
5182826,STAFFORDSHIRE UNIVERSITY,People & Performance,Director of Governance,Training Course Costs,,18/12/14,930.00 ,,Unclassifiable
5182833,TAMESIDE COLLEGE,People & Performance,Director of Governance,Training Course Costs,,01/12/14,"1,265.00 ",,Unclassifiable
5182843,WORKS 4U SUPPORT SERVICES LIMITED,Education Services,Childrens Services,Professional Services,,01/12/14,"24,766.00 ",,Human Resources
5182844,POSTAGE BY PHONE PITNEY BOWES LTD,Exchequer,Director of Finance,Postages,,01/12/14,"40,000.00 ",,Mail Services�
5182861,ROYAL MAIL GROUP PLC,Exchequer,Director of Finance,Postages,,11/12/14,"1,504.80 ",,Mail Services
5182862,ROYAL MAIL GROUP PLC,Exchequer,Director of Finance,Postages,,04/12/14,"3,033.16 ",,Mail Services
5182864,NEW CHARTER HOUSING TRUST GROUP,Adult Services,"Community, Adult & Adults Early Intervention",Non-Authority Accommodation Rental,,01/12/14,"2,456.40 ",,Social Community Care Supplies & Services
5182865,NEW CHARTER HOUSING TRUST GROUP,Adult Services,"Community, Adult & Adults Early Intervention",Non-Authority Accommodation Rental,,01/12/14,"2,527.83 ",,Social Community Care Supplies & Services
5182868,NEW CHARTER HOUSING TRUST GROUP,Adult Services,"Community, Adult & Adults Early Intervention",Non-Authority Accommodation Rental,,01/12/14,"2,551.64 ",,Social Community Care Supplies & Services
5182871,H N NUTTALL LTD,Neighbourhoods & Communities,"Community, Adult & Adults Early Intervention",Professional Entertainment Services,,11/12/14,879.45 ,,Leisure Services
5182877,P F CUSACK LTD,Operations,Places,General Materials,,03/12/14,921.60 ,,Horticultural
5182878,KEYS CHILDCARE LTD,Education Services,Childrens Services,Voluntary Organisations Fees,,01/12/14,"2,100.00 ",,Social Community Care
5182879,KEYS CHILDCARE LTD,Education Services,Childrens Services,Voluntary Organisations Fees,,01/12/14,"2,100.00 ",,Social Community Care
5182881,KEYS CHILDCARE LTD,Education Services,Childrens Services,Voluntary Organisations Fees,,01/12/14,"3,300.00 ",,Social Community Care
5182882,KEYS CHILDCARE LTD,Education Services,Childrens Services,Voluntary Organisations Fees,,01/12/14,"2,700.00 ",,Social Community Care
5182883,KEYS CHILDCARE LTD,Education Services,Childrens Services,Voluntary Organisations Fees,,01/12/14,"3,000.00 ",,Social Community Care
5182885,TRAVELERS INSURANCE COMPANY LTD,Multiple Heads of Service,Multiple Strategic Directorates,Reimbursement Paid To Insurers,,01/12/14,"25,183.50 ",,Financial Services
5182886,TAMESIDE DIWALI STEERING GROUP,Neighbourhoods & Communities,"Community, Adult & Adults Early Intervention",Professional Entertainment Services,,18/12/14,500.00 ,,Financial Services
5182891,HOIST & SHOWER CHAIR CO,Housing,"Economic Growth, Investment and Sustainability",Adaptations - Jobs <#500,,08/12/14,"1,555.00 ",,Social Community Care Supplies & Services
5182891,HOIST & SHOWER CHAIR CO,Multiple Heads of Service,Multiple Strategic Directorates,CIS Labour Credits, ,08/12/14,350.00 ,,Social Community Care Supplies & Services
5182891,HOIST & SHOWER CHAIR CO,Multiple Heads of Service,Multiple Strategic Directorates,CIS Labour Debits,,08/12/14,-350.00 ,,Social Community Care Supplies & Services
5182893,ZURICH MUNICIPAL CLAIMS BUREAU,Multiple Heads of Service,Multiple Strategic Directorates,Reimbursement Paid To Insurers,,01/12/14,"50,000.00 ",,Financial Services
5182902,WILDE CONSULTING ENGINEERS,Engineers Client,"Economic Growth, Investment and Sustainability",Engineers -External,,03/12/14,"3,914.68 ",,Consultancy
5182902,WILDE CONSULTING ENGINEERS,Capital Prog,(blank),Engineers -External,,03/12/14,607.74 ,,Consultancy
5182906,BRIAN GLYNN & CO,Housing,"Economic Growth, Investment and Sustainability",Improvement Grants - Final Mandatory,,01/12/14,"3,445.00 ",,"Works -  Construction, Repair & Maintenance"
5182908,WILDE CONSULTING ENGINEERS,Engineers Client,"Economic Growth, Investment and Sustainability",Engineers -External,,03/12/14,255.48 ,,Consultancy
5182908,WILDE CONSULTING ENGINEERS,Capital Prog,(blank),Engineers -External,,03/12/14,"6,611.14 ",,Consultancy
5182915,TONY WALSH (LONGFELLA),Neighbourhoods & Communities,"Community, Adult & Adults Early Intervention",Professional Entertainment Services,,23/12/14,"1,320.00 ",,Financial Services
5182916,HEALTH MANAGEMENT (UK) LTD,People & Performance,Director of Governance,Professional services,,03/12/14,"5,739.00 ",,Medical
5182919,TAMESIDE CITIZENS ADVICE BUREAU,Exchequer,Director of Finance,Professional Services,,01/12/14,"3,500.00 ",,Social Community Care Supplies & Services
5182920,HANDICARE LIMITED,Housing,"Economic Growth, Investment and Sustainability",Adaptations - Jobs <#500,,04/12/14,"2,081.00 ",,Social Community Care
5182933,MIDLAND SOFTWARE LTD,People & Performance,Director of Governance,Professional Services,,01/12/14,"3,412.03 ",,Information Communication Technology
5182935,EVERGLADES NURSERIES LTD,Operations,Places,General Materials,,01/12/14,"1,087.00 ",,Horticultural
5182942,RIGBY TAYLOR LTD,Operations,Places,General Materials,,18/12/14,659.40 ,,Horticultural
5182949,AGGREGATE INDUSTRIES UK LIMITED,Engineers Client,"Economic Growth, Investment and Sustainability",Road Marking Works,,03/12/14,"30,000.00 ",,Highway Equipment & Materials
5182949,AGGREGATE INDUSTRIES UK LIMITED,Capital Prog,(blank),Road Marking Works,,03/12/14,"118,677.09 ",,Highway Equipment & Materials
5182950,GROUNDWORK LANDSCAPES LIMITED,Operations,Places,Project Costs,,23/12/14,"58,169.47 ",,"Works - Construction, Repair & Maintenance"
5182953,KEYS CHILDCARE LTD,Education Services,Childrens Services,Voluntary Organisations Fees,,01/12/14,"3,150.00 ",,Social Community Care
5182956,THE CARE TEAM LTD,Neighbourhoods & Communities,"Community, Adult & Adults Early Intervention",Professional Medical Services,,23/12/14,"1,200.00 ",,Unclassifiable
5182958,MAMMOTH SIGNS LTD,Technical,Places,Statutory Advertising,,18/12/14,"1,050.00 ",,"Works - Construction, Repair & Maintenance"
5182960,QUICKSILVER UK LTD,Neighbourhoods & Communities,"Community, Adult & Adults Early Intervention",Grants to Organisations,,01/12/14,630.00 ,,Leisure Services
5182964,ALTERNATIVE FUTURES GROUP,Adult Services,"Community, Adult & Adults Early Intervention",Homecare Fees,,10/12/14,"9,078.16 ",,Social Community Care Supplies & Services
5182968,,Multiple Heads of Service,Multiple Strategic Directorates,Claims Settled,Redacted Supplier,01/12/14,967.54 ,,Redacted
5182972,THE FURNISHING SERVICE LTD,Neighbourhoods & Communities,"Community, Adult & Adults Early Intervention",Fixtures & Fittings Purchase,,10/12/14,"1,203.66 ",,Furniture
5182979,UNITED UTILITIES WATER PLC,Tameside Investment Partnership,Places,Metered Water Costs,,10/12/14,615.14 ,,Utilities
5182986,TAMESIDE HOSPITAL NHS FOUNDATION TRUST,Public Health,Public Health,Professional Services,,01/12/14,505.83 ,,Unclassifiable
5182990,MOSSLEY AMATEUR OPERATIC& DRAMATIC SOCIETY,Neighbourhoods & Communities,"Community, Adult & Adults Early Intervention",Professional Entertainment Services,,01/12/14,"1,240.00 ",,Leisure Services
5183002,WAYNE KAY PRODUCTIONS,Neighbourhoods & Communities,"Community, Adult & Adults Early Intervention",Grants to Organisations,,01/12/14,950.00 ,,Unclassifiable
5183006,WAYNE KAY PRODUCTIONS,Neighbourhoods & Communities,"Community, Adult & Adults Early Intervention",Grants to Organisations,,01/12/14,"2,790.00 ",,Unclassifiable
5183007,WAYNE KAY PRODUCTIONS,Neighbourhoods & Communities,"Community, Adult & Adults Early Intervention",Grants to Organisations,,01/12/14,"2,590.00 ",,Unclassifiable
5183008,ELECTRICITY NORTH WEST LTD,Asset Management and Investment Partnership Management,"Economic Growth, Investment and Sustainability",Engineers -External,,23/12/14,"23,695.53 ",,Utilities
5183010,AGRICULTURAL AND RURAL CENTRE CIC,Education Services,Childrens Services,Professional Services,,08/12/14,"1,155.00 ",,Redacted
5183011,GREG EGAN,Education Services,Childrens Services,Additional Hire,Business Payment,10/12/14,"4,000.00 ",,Redacted
5183024,BIRCHALL BLACKBURN LAW,Multiple Heads of Service,Multiple Strategic Directorates,Claims Settled,,01/12/14,"11,000.00 ",,Unclassifiable
5183032,CASCADE MACHINERY SUPPLIES LTD,Operations,Places,General Materials,,18/12/14,"2,678.00 ",,Vehicles
5183044,VISION FOR EDUCATION LIMITED,Education Services,Childrens Services,Agency Staff,,11/12/14,900.00 ,,Education
5183058,FRESH START INDEPENDENCE PROJECT LTD,Children's Services,Childrens Services,Living With Formal Support,,01/12/14,"1,149.96 ",,Social Community Care Supplies & Services
5183059,PENDLE PRODUCTIONS,Neighbourhoods & Communities,"Community, Adult & Adults Early Intervention",Professional Entertainment Services,,08/12/14,"15,000.00 ",,Leisure Services
5183060,RANDSTAD EDUCATION LIMITED,Education Services,Childrens Services,"Activity (Materials, Trips)",,03/12/14,"1,050.00 ",,Education
5183063,REGENDA LIMITED,Adult Services,"Community, Adult & Adults Early Intervention",Non-Authority Accommodation Rental,,17/12/14,"16,796.49 ",,Housing Management
5183065,PENDLE PRODUCTIONS,Neighbourhoods & Communities,"Community, Adult & Adults Early Intervention",Professional Entertainment Services,,04/12/14,"6,000.00 ",,Leisure Services
5183067,THE FAMILY UNIT LTD,Children's Services,Childrens Services,Living With Formal Support,,01/12/14,"3,400.00 ",,Social Community Care
5183068,RANDSTAD EDUCATION LIMITED,Education Services,Childrens Services,"Activity (Materials, Trips)",,03/12/14,"1,050.00 ",,Education
5183071,RANDSTAD EDUCATION LIMITED,Education Services,Childrens Services,"Activity (Materials, Trips)",,03/12/14,575.00 ,,Education
5183074,THE FURNISHING SERVICE LTD,Neighbourhoods & Communities,"Community, Adult & Adults Early Intervention",Fixtures & Fittings Purchase,,23/12/14,872.57 ,,Furniture
5183080,TRANSPORT FOR GREATER MANCHESTER,Education Services,Childrens Services,Transport Of Pupils,,18/12/14,"2,297.28 ",,Transport
5183086,STOCKPORT NHS FOUNDATION TRUST,Education Services,Childrens Services,Professional Services,,08/12/14,"2,491.00 ",,Medical
5183091,DIOCESE OF SALFORD DFC,Tameside Investment Partnership,Places,Non-Authority Accommodation Rental,,10/12/14,"1,750.00 ",,Unclassifiable
5183121,STEP AHEAD RESOURCE SERVICES,Children's Services,Childrens Services,Living Without Formal Support,,23/12/14,750.00 ,,Social Community Care
5183122,STEP AHEAD RESOURCE SERVICES,Children's Services,Childrens Services,Living Without Formal Support,,23/12/14,750.00 ,,Social Community Care
5183124,STEP AHEAD RESOURCE SERVICES,Children's Services,Childrens Services,Living Without Formal Support,,23/12/14,750.00 ,,Social Community Care
5183125,FI SMITH ARTS,Neighbourhoods & Communities,"Community, Adult & Adults Early Intervention",Professional Entertainment Services,,23/12/14,"2,420.00 ",,Financial Services
5183146,ROCOM,Tameside Investment Partnership,Places,Computer Software,,23/12/14,"1,758.33 ",,Information Communication Technology
5183148,GETRONICS UNIFIED COMMUNICATIONS UK LIMITED,Digital Tameside,Places,It Equipment,,23/12/14,"19,760.00 ",,Information Communication Technology
5183150,FUSION CARE,Children's Services,Childrens Services,Cash Grants,,03/12/14,580.87 ,,Social Community Care Supplies & Services
5183152,COOLSPIRIT LTD,Digital Tameside,Places,It Equipment,,23/12/14,960.00 ,,Information Communication Technology
5183153,CLEAR LAW LLP,Multiple Heads of Service,Multiple Strategic Directorates,Claims Settled,,01/12/14,"1,000.00 ",,Legal Services
5183154,VODAFONE,Multiple Heads of Service,Multiple Strategic Directorates,Debits,,08/12/14,"7,416.84 ",,Information Communication Technology
5183162,ELECTRICITY NORTH WEST LTD,Technical,Places,Sub-contractor Services,,23/12/14,609.99 ,,Utilities
5183163,ELECTRICITY NORTH WEST LTD,Technical,Places,Street Lighting,,23/12/14,609.99 ,,Utilities
5183171,STANNAH LIFT SERVICES LTD,Housing,"Economic Growth, Investment and Sustainability",Improvement Grants - Final Mandatory,,18/12/14,"3,930.00 ",,Social Community Care
5183173,THYSSENKRUPP ENCASA LTD,Housing,"Economic Growth, Investment and Sustainability",Improvement Grants - Final Mandatory,,18/12/14,"2,160.00 ",,Social Community Care
5183174,THYSSENKRUPP ENCASA LTD,Housing,"Economic Growth, Investment and Sustainability",Improvement Grants - Final Mandatory,,18/12/14,"4,584.00 ",,Social Community Care
5183179,TAMESIDE SPORTS TRUST,Public Health,Public Health,Other Accomodation Related Costs,,01/12/14,"1,038.42 ",,Leisure Services
5183185,ACORN RECOVERY PROJECTS,Public Health,Public Health,Professional Services,,03/12/14,"1,096.07 ",,Social Community Care Supplies & Services
5183187,ACORN RECOVERY PROJECTS,Public Health,Public Health,Professional Services,,03/12/14,"1,096.07 ",,Social Community Care Supplies & Services
5183188,ACORN RECOVERY PROJECTS,Public Health,Public Health,Professional Services,,03/12/14,"2,192.14 ",,Social Community Care Supplies & Services
5183189,ACORN RECOVERY PROJECTS,Public Health,Public Health,Professional Services,,03/12/14,"1,838.57 ",,Social Community Care Supplies & Services
5183190,MR JAMES TURLEY T/A R TURLEY PLUMBERS,Housing,"Economic Growth, Investment and Sustainability",Improvement Grants - Final Mandatory,Business Payment,03/12/14,"4,250.00 ",,"Works - Construction, Repair & Maintenance"
5183191,ACORN RECOVERY PROJECTS,Public Health,Public Health,Professional Services,,03/12/14,636.43 ,,Social Community Care Supplies & Services
5183192,ACORN RECOVERY PROJECTS,Public Health,Public Health,Professional Services,,03/12/14,990.00 ,,Social Community Care Supplies & Services
5183193,ACORN RECOVERY PROJECTS,Public Health,Public Health,Professional Services,,03/12/14,"1,096.07 ",,Social Community Care Supplies & Services
5183194,MR JAMES TURLEY T/A R TURLEY PLUMBERS,Housing,"Economic Growth, Investment and Sustainability",Improvement Grants - Final Mandatory,Business Payment,04/12/14,"3,800.00 ",,"Works - Construction, Repair & Maintenance"
5183195,ACORN RECOVERY PROJECTS,Public Health,Public Health,Professional Services,,03/12/14,"1,096.07 ",,Social Community Care Supplies & Services
5183196,HANDICARE LIMITED,Housing,"Economic Growth, Investment and Sustainability",Improvement Grants - Final Mandatory,,18/12/14,"4,168.00 ",,Social Community Care
5183198,ACORN RECOVERY PROJECTS,Public Health,Public Health,Professional Services,,03/12/14,848.57 ,,Social Community Care Supplies & Services
5183199,ACORN RECOVERY PROJECTS,Public Health,Public Health,Professional Services,,03/12/14,"2,192.14 ",,Social Community Care Supplies & Services
5183200,ACORN RECOVERY PROJECTS,Public Health,Public Health,Professional Services,,03/12/14,"2,192.14 ",,Social Community Care Supplies & Services
5183203,JULIE MURRAY-SHEPHARD,Public Health,Public Health,Professional Services,Business Payment,15/12/14,"3,000.00 ",,Redacted
5183204,GREAT PLACES HOUSING GROUP,Adult Services,"Community, Adult & Adults Early Intervention",Non-Authority Accommodation Rental,,23/12/14,"3,105.60 ",,Housing Management
5183205,ACORN RECOVERY PROJECTS,Public Health,Public Health,Professional Services,,03/12/14,777.86 ,,Social Community Care Supplies & Services
5183207,,Adult Services,"Community, Adult & Adults Early Intervention",Homecare Fees,Redacted Supplier,03/12/14,"1,557.01 ",,Redacted
5183208,,Adult Services,"Community, Adult & Adults Early Intervention",Homecare Fees,Redacted Supplier,03/12/14,512.46 ,,Redacted
5183209,PENNINE CARE NHS FOUNDATION TRUST,Adult Services,"Community, Adult & Adults Early Intervention",Professional Services,,04/12/14,"7,296.00 ",,Medical
5183210,,Adult Services,"Community, Adult & Adults Early Intervention",Homecare Fees,Redacted Supplier,03/12/14,776.71 ,,Redacted
5183211,,Adult Services,"Community, Adult & Adults Early Intervention",Contribution to Maintenance Fee Income,Redacted Supplier,03/12/14,792.40 ,,Redacted
5183212,,Adult Services,"Community, Adult & Adults Early Intervention",Contribution to Maintenance Fee Income,Redacted Supplier,03/12/14,874.26 ,,Redacted
5183213,,Adult Services,"Community, Adult & Adults Early Intervention",Contribution to Maintenance Fee Income,Redacted Supplier,03/12/14,589.34 ,,Redacted
5183227,,Adult Services,"Community, Adult & Adults Early Intervention",Contribution to Maintenance Fee Income,Redacted Supplier,03/12/14,"1,055.53 ",,Redacted
5183243,ROYAL MAIL GROUP PLC,Exchequer,Director of Finance,Postages,,15/12/14,"1,207.15 ",,Mail Services
5183246,TRIBAL EDUCATION LTD,Strategy & Early Intervention,Childrens Services,Computer Software Maintenance Costs,,23/12/14,"1,350.00 ",,Information Communication Technology
5183252,MIDLAND SOFTWARE LTD,People & Performance,Director of Governance,Licences,,15/12/14,"25,213.93 ",,Information Communication Technology
5183263,HOWARD COOK,Education Services,Childrens Services,Professional Services,Business Payment,01/12/14,680.00 ,,Unclassifiable
5183265,PAYPARTNERS LTD (MONTHLY),Adult Services,"Community, Adult & Adults Early Intervention",Sub-contractor Services,,18/12/14,"5,376.00 ",,Social Community Care Supplies & Services
5183266,PAYPARTNERS LTD (MONTHLY),Adult Services,"Community, Adult & Adults Early Intervention",Sub-contractor Services,,18/12/14,899.50 ,,Social Community Care Supplies & Services
5183267,PAYPARTNERS LTD (MONTHLY),Adult Services,"Community, Adult & Adults Early Intervention",Sub-contractor Services,,18/12/14,826.00 ,,Social Community Care Supplies & Services
5183276,CHEETHAMS MILL INDUSTRIAL PARK LTD,Adult Services,"Community, Adult & Adults Early Intervention",Building Repairs,,10/12/14,"2,070.00 ",,Environmental Services
5183277,CBS (NORTH WEST) LTD,Technical,Places,Engineers Works,,08/12/14,"3,750.00 ",,"Works - Construction, Repair & Maintenance"
5183279,MOSSLEY PRIVATE HIRE,Asset Mgmt & Investment Partnership Mgmt,Places,Hired Transport,,03/12/14,900.00 ,,Redacted
5183280,HMCTS,Exchequer,Director of Finance,Postages,,03/12/14,"4,902.00 ",,Non 3rd Party spend  
5183316,OAK LEA HOUSE,Children's Services,Childrens Services,Living Without Formal Support,,04/12/14,"3,360.00 ",,Unclassifiable
5183317,DOVE PROPERTIES,Children's Services,Childrens Services,Living Without Formal Support,,04/12/14,923.00 ,,Unclassifiable
5183328,IDOX SOFTWARE LIMITED,Sustainable Growth,Places,Computer Hardware Maintenance Costs,,23/12/14,"1,140.00 ",,Information Communication Technology
5183330,CLOVERLEAF ADVOCACY 2000 LTD,Adult Services,"Community, Adult & Adults Early Intervention",Professional Services,,23/12/14,"12,408.30 ",,Social Community Care Supplies & Services
5183331,WILLIAMS WOODWARD LTD,Resource Management,Director of Finance,Professional Consultancy Services,,23/12/14,"6,225.00 ",,Redacted
5183337,ACORN CARE & EDUCATION LTD (SALES),Education Services,Childrens Services,Voluntary Organisations Fees,,03/12/14,"9,315.26 ",,Social Community Care
5183357,PRD PROPERTY SERVICES LTD,Borough Solicitor,Director of Governance,Legal Fees,,03/12/14,"5,400.00 ",,Facilities & Management Services
5183359,PRD PROPERTY SERVICES LTD,Borough Solicitor,Director of Governance,Legal Fees,,03/12/14,"4,320.00 ",,Facilities & Management Services
5183361,MISS LUKHVINDER KAUR,Borough Solicitor,Director of Governance,Legal Fees,Business Payment,03/12/14,950.00 ,,Unclassifiable
5183362,ADDLESHAW GODDARD,Asset Mgmt & Investment Partnership Mgmt,Places,Legal Fees,,03/12/14,812.20 ,,Unclassifiable
5183363,XEROX (UK) LIMITED,"Media, Marketing & Communications",Director of Governance,Printing And Stationery,,03/12/14,"6,704.47 ",,Information Communication Technology
5183364,BROMLEYS SOLICITORS LLP,Children's Services,Childrens Services,Legal Fees,,03/12/14,613.30 ,,Legal Services
5183367,ACORN CARE & EDUCATION LTD (SALES),Education Services,Childrens Services,Voluntary Organisations Fees,,04/12/14,"10,097.64 ",,Social Community Care
5183369,ACORN CARE & EDUCATION LTD (SALES),Education Services,Childrens Services,Voluntary Organisations Fees,,04/12/14,"10,347.67 ",,Social Community Care
5183370,ACORN CARE & EDUCATION LTD (SALES),Education Services,Childrens Services,Voluntary Organisations Fees,,03/12/14,"9,810.51 ",,Social Community Care
5183372,ACORN CARE & EDUCATION LTD (SALES),Education Services,Childrens Services,Voluntary Organisations Fees,,04/12/14,"10,658.00 ",,Social Community Care
5183378,ACORN CARE & EDUCATION LTD (SALES),Education Services,Childrens Services,Voluntary Organisations Fees,,04/12/14,"10,347.67 ",,Social Community Care
5183379,ACORN CARE & EDUCATION LTD (SALES),Education Services,Childrens Services,Voluntary Organisations Fees,,04/12/14,"10,097.64 ",,Social Community Care
5183380,ACORN CARE & EDUCATION LTD (SALES),Education Services,Childrens Services,Voluntary Organisations Fees,,04/12/14,"10,658.00 ",,Social Community Care
5183382,ACORN CARE & EDUCATION LTD (SALES),Education Services,Childrens Services,Voluntary Organisations Fees,,04/12/14,"10,347.68 ",,Social Community Care
5183384,N A BROWN LTD,Operations,Places,General Materials,,04/12/14,769.50 ,,Unclassifiable
5183386,ROSSENDALE SCHOOL PRIORY,Education Services,Childrens Services,Voluntary Organisations Fees,,08/12/14,"25,500.00 ",,Education
5183387,ROSSENDALE SCHOOL PRIORY,Education Services,Childrens Services,Voluntary Organisations Fees,,08/12/14,"17,412.00 ",,Education
5183401,PAYPOINT COLLECTIONS LTD,Neighbourhoods & Communities,"Community, Adult & Adults Early Intervention",Emergency Grant Payments,,03/12/14,"1,724.00 ",,Unclassifiable
5183406,MR MICHAEL HIRST,Operations,Places,General Materials,Business Payment,10/12/14,"4,011.00 ",,Unclassifiable
5183422,SCC CONSULTANCY LIMITED,Education Services,Childrens Services,Professional Services,,03/12/14,"3,570.00 ",,Consultancy
5183423,SCC CONSULTANCY LIMITED,Education Services,Childrens Services,Professional Services,,10/12/14,"1,920.00 ",,Consultancy
5183425,SCC CONSULTANCY LIMITED,Education Services,Childrens Services,Professional Services,,17/12/14,"2,940.00 ",,Consultancy
5183432,NEW LOOK SERVICES,Adult Services,"Community, Adult & Adults Early Intervention",Fixtures & Fittings Purchase,,04/12/14,"1,571.00 ",,Unclassifiable
5183442,XEROX (UK) LIMITED,"Media, Marketing & Communications",Director of Governance,Printing And Stationery,,23/12/14,"8,111.51 ",,Information Communication Technology
5183452,MRL HEALTHCARE LIMITED,Adult Services,"Community, Adult & Adults Early Intervention",Homecare Fees,,08/12/14,"14,317.83 ",,Social Community Care Supplies & Services
5183452,MRL HEALTHCARE LIMITED,Resource Management,Director of Finance,Homecare Fees,,08/12/14,"14,409.77 ",,Social Community Care Supplies & Services
5183457,COMFORT CALL LIMITED,Adult Services,"Community, Adult & Adults Early Intervention",Homecare Fees,,08/12/14,"29,533.64 ",,Medical
5183458,ABLE CARE AND SUPPORT SERVICES LTD,Adult Services,"Community, Adult & Adults Early Intervention",Homecare Fees,,10/12/14,"1,990.91 ",,Social Community Care Supplies & Services
5183461,DREAMLAND CARPETS & LAMINATE FLOORING,Neighbourhoods & Communities,"Community, Adult & Adults Early Intervention",Fixtures & Fittings Purchase,,03/12/14,704.00 ,,Building Construction Materials
5183463,DREAMLAND CARPETS & LAMINATE FLOORING,Neighbourhoods & Communities,"Community, Adult & Adults Early Intervention",Fixtures & Fittings Purchase,,03/12/14,897.00 ,,Building Construction Materials
5183465,COMFORT CALL LIMITED,Adult Services,"Community, Adult & Adults Early Intervention",Homecare Fees,,15/12/14,"29,785.67 ",,Medical
5183466,PEOPLE FIRST TAMESIDE,Adult Services,"Community, Adult & Adults Early Intervention",Professional Services,,03/12/14,"7,833.60 ",,Social Community Care Supplies & Services
5183467,"TAMESIDE, OLDHAM AND GLOSSOP MIND",Adult Services,"Community, Adult & Adults Early Intervention",Professional Services,,04/12/14,"2,539.80 ",,Social Community Care Supplies & Services
5183470,TAMESIDE ARTS LTD,Adult Services,"Community, Adult & Adults Early Intervention",Professional Services,,03/12/14,"1,224.00 ",,Leisure Services
5183473,GREENSCAPE,Neighbourhoods & Communities,"Community, Adult & Adults Early Intervention",Grants to Organisations,,11/12/14,850.00 ,,"Works - Construction, Repair & Maintenance"
5183475,PLACEFIRST LTD,Engineers Client,"Economic Growth, Investment and Sustainability",Professional Services,,08/12/14,"20,752.00 ",,Public Bodies
5183476,OAK LEA HOUSE,Children's Services,Childrens Services,Living Without Formal Support,,04/12/14,"6,720.00 ",,Unclassifiable
5183483,ORANGE PCS,"Media, Marketing & Communications",Director of Governance,Mobile Telephones,,08/12/14,758.03 ,,Information Communication Technology
5183485,ORANGE PCS,"Media, Marketing & Communications",Director of Governance,Mobile Telephones,,08/12/14,"3,126.81 ",,Information Communication Technology
5183495,INSPIREDSPACES TAMESIDE LTD,Asset Management and Investment Partnership Management,"Economic Growth, Investment and Sustainability",Refurbish Accommodation Works,,10/12/14,"247,741.88 ",,Consultancy
5183495,INSPIREDSPACES TAMESIDE LTD,Asset Management and Investment Partnership Management,"Economic Growth, Investment and Sustainability",Telecom,,10/12/14,"29,386.60 ",,Consultancy
5183495,INSPIREDSPACES TAMESIDE LTD,Tameside Investment Partnership,"Economic Growth, Investment and Sustainability",Other Works,,10/12/14,"30,984.00 ",,Consultancy
5183503,HMRC,Multiple Heads of Service,Multiple Strategic Directorates,Tax Paid Sub Contractors,,08/12/14,"4,529.36 ",,Unclassifiable
5183510,RANDSTAD EDUCATION LIMITED,Education Services,Childrens Services,Agency Staff,,17/12/14,"1,050.00 ",,Education
5183511,GVA GRIMLEY LTD,Asset Mgmt & Investment Partnership Mgmt,Places,Professional Services,,10/12/14,"1,500.00 ",,Facilities & Management Services
5183516,RADIO CABS (ASHTON)LTD,Technical,Places,Hired Transport,,08/12/14,864.40 ,,Redacted
5183517,RADIO CABS (ASHTON)LTD,Education Services,Childrens Services,Transport Of Pupils,,08/12/14,"1,692.00 ",,Redacted
5183520,RADIO CABS (ASHTON)LTD,Education Services,Childrens Services,Transport Of Pupils,,08/12/14,"1,692.00 ",,Redacted
5183522,RADIO CABS (ASHTON)LTD,Education Services,Childrens Services,Transport Of Post 16 Pupils,,08/12/14,"1,626.40 ",,Redacted
5183523,RADIO CABS (ASHTON)LTD,Education Services,Childrens Services,Transport Of Pupils,,08/12/14,"2,070.00 ",,Redacted
5183524,RADIO CABS (ASHTON)LTD,Technical,Places,Hired Transport,,08/12/14,537.80 ,,Redacted
5183525,RADIO CABS (ASHTON)LTD,Education Services,Childrens Services,Transport Of Post 16 Pupils,,08/12/14,629.30 ,,Redacted
5183526,RADIO CABS (ASHTON)LTD,Education Services,Childrens Services,Transport Of Pupils,,08/12/14,877.20 ,,Redacted
5183528,RADIO CABS (ASHTON)LTD,Education Services,Childrens Services,Transport Of Pupils,,08/12/14,"1,598.00 ",,Redacted
5183529,NORTHENDEN TRAVEL LTD,Borough Solicitor,Director of Governance,Staff Travel Costs,,11/12/14,835.50 ,,Human Resources
5183534,RADIO CABS (ASHTON)LTD,Education Services,Childrens Services,Transport Of Post 16 Pupils,,08/12/14,"1,378.80 ",,Redacted
5183536,RADIO CABS (ASHTON)LTD,Technical,Places,Hired Transport,,08/12/14,588.70 ,,Redacted
5183538,RADIO CABS (ASHTON)LTD,Technical,Places,Hired Transport,,08/12/14,"1,126.80 ",,Redacted
5183554,RADIO CABS (ASHTON)LTD,Technical,Places,Hired Transport,,08/12/14,967.50 ,,Redacted
5183555,RADIO CABS (ASHTON)LTD,Education Services,Childrens Services,Transport Of Pupils,,08/12/14,"1,598.00 ",,Redacted
5183559,SPECIALIST COMPUTER CENTRES LIMITED,Digital Tameside,Places,It Equipment,,10/12/14,"6,270.14 ",,Information Communication Technology
5183565,FACILITY SOLUTIONS NORTHWEST,Tameside Investment Partnership,Places,Security Services,,11/12/14,"4,227.50 ",,Public Bodies
5183567,THRESHOLD HOUSING PROJECT,Neighbourhoods & Communities,"Community, Adult & Adults Early Intervention",Supporting People Gross Contract,,08/12/14,"14,666.66 ",,Housing Management
5183568,THRESHOLD HOUSING PROJECT,Neighbourhoods & Communities,"Community, Adult & Adults Early Intervention",Supporting People Gross Contract,,08/12/14,"30,833.33 ",,Housing Management
5183583,NETWORK CONNECT LTD,Multiple Heads of Service,Multiple Strategic Directorates,Communications Equipment,,11/12/14,"5,786.84 ",,Redacted
5183587,NEW CHARTER HOUSING TRUST GROUP,Public Health,Public Health,Professional Services,,22/12/14,"15,000.00 ",,Social Community Care Supplies & Services
5183591,MRL HEALTHCARE LIMITED,Adult Services,"Community, Adult & Adults Early Intervention",Homecare Fees,,08/12/14,"14,870.78 ",,Social Community Care Supplies & Services
5183591,MRL HEALTHCARE LIMITED,Resource Management,Director of Finance,Homecare Fees,,08/12/14,"14,101.21 ",,Social Community Care Supplies & Services
5183609,NEW CHARTER HOUSING TRUST GROUP,Neighbourhoods & Communities,"Community, Adult & Adults Early Intervention",Supporting People Gross Contract,,22/12/14,"20,022.16 ",,Social Community Care Supplies & Services
5183610,NEW CHARTER HOUSING TRUST GROUP,Neighbourhoods & Communities,"Community, Adult & Adults Early Intervention",Housing Aid Function,,22/12/14,"33,740.57 ",,Social Community Care Supplies & Services
5183614,BLACK & WHITE PROMOTIONAL PRINT SERVICES,"Media, Marketing & Communications",Director of Governance,Printing And Stationery,,08/12/14,"1,387.00 ",,Facilities & Management Services
5183621,BLACK & WHITE PROMOTIONAL PRINT SERVICES,"Media, Marketing & Communications",Director of Governance,Printing And Stationery,,08/12/14,"3,345.00 ",,Facilities & Management Services
5183633,,Children's Services,Childrens Services,Living With Formal Support,Redacted Supplier,23/12/14,"3,520.67 ",,Redacted
5183638,BERTRAM LIBRARY SERVICES,Neighbourhoods & Communities,"Community, Adult & Adults Early Intervention",Purchase Books,,23/12/14,"13,262.61 ",,Education
5183639,THE CHESHIRE & GREATER MANCHESTER COMMUNITY REHABILITATION COMPANY LTD,Public Health,Public Health,Professional Interpreter Services,,10/12/14,"27,637.38 ",,Unclassifiable
5183640,THE CHESHIRE & GREATER MANCHESTER COMMUNITY REHABILITATION COMPANY LTD,Public Health,Public Health,Professional Interpreter Services,,10/12/14,"2,363.13 ",,Unclassifiable
5183644,ANDREW MOORE,Children's Services,Childrens Services,Legal Fees,Business Payment,18/12/14,"4,250.00 ",,Legal Services
5183645,OLDHAM COUNCIL,Education Services,Childrens Services,Transport Of Ola Pupils,,08/12/14,782.99 ,,Unclassifiable
5183647,MISS ANDREA MARKHAM,Children's Services,Childrens Services,Legal Fees,Business Payment,08/12/14,"3,450.00 ",,Legal Services
5183648,MISS JANICE WILLS,Children's Services,Childrens Services,Legal Fees,Business Payment,08/12/14,"5,350.00 ",,Legal Services
5183649,MISS KATE BRAMALL,Children's Services,Childrens Services,Professional Services,Business Payment,08/12/14,"3,390.00 ",,Unclassifiable
5183652,BLACK & WHITE PROMOTIONAL PRINT SERVICES,"Media, Marketing & Communications",Director of Governance,Printing And Stationery,,08/12/14,"1,000.00 ",,Facilities & Management Services
5183655,BT PLC,Tameside Investment Partnership,"Economic Growth, Investment and Sustainability",Refurbish Accommodation Works,,10/12/14,"1,636.08 ",,Information Communication Technology
5183657,ALTERNATIVE FUTURES GROUP,Adult Services,"Community, Adult & Adults Early Intervention",Homecare Fees,,18/12/14,"4,348.40 ",,Social Community Care Supplies & Services
5183664,INSPIREDSPACES TAMESIDE (PROJECTCO2) LTD,Asset Mgmt & Investment Partnership Mgmt,Places,Free School Meal Costs,,10/12/14,"18,368.00 ",,"Works - Construction, Repair & Maintenance"
5183664,INSPIREDSPACES TAMESIDE (PROJECTCO2) LTD,Asset Mgmt & Investment Partnership Mgmt,Places,Refreshments,,10/12/14,"2,288.08 ",,"Works - Construction, Repair & Maintenance"
5183664,INSPIREDSPACES TAMESIDE (PROJECTCO2) LTD,Asset Mgmt & Investment Partnership Mgmt,Places,Unitary Charge Payments,,10/12/14,"833,987.24 ",,"Works - Construction, Repair & Maintenance"
5183664,INSPIREDSPACES TAMESIDE (PROJECTCO2) LTD,Asset Mgmt & Investment Partnership Mgmt,Places,Utilities,,10/12/14,"53,223.88 ",,"Works - Construction, Repair & Maintenance"
5183665,CALLROUND LIMITED,Education Services,Childrens Services,Professional Services,,23/12/14,"2,200.00 ",,Public Bodies
5183672,TRAFFORD MBC,Other Services,Director of Finance,Other Accomodation Related Costs,,15/12/14,834.00 ,,Unclassifiable
5183674,,Multiple Heads of Service,Multiple Strategic Directorates,Claims Settled,Redacted Supplier,10/12/14,"4,000.00 ",,Redacted
5183676,LYMEFIELD GARDEN NURSERY LTD,Neighbourhoods & Communities,"Community, Adult & Adults Early Intervention",Professional Entertainment Services,,11/12/14,500.00 ,,Horticultural
5183680,ELECTRICITY NORTH WEST LTD,Technical,Places,Street Lighting,,23/12/14,530.72 ,,Utilities
5183688,TYNETEC,Adult Services,"Community, Adult & Adults Early Intervention",It Equipment,,18/12/14,"8,200.90 ",,Social Community Care
5183691,MOSSCARE HOUSING LTD,Adult Services,"Community, Adult & Adults Early Intervention",Non-Authority Accommodation Rental,,17/12/14,"28,480.93 ",,Social Community Care Supplies & Services
5183696,GLM ACCESSIBLE TRANSPORT,Education Services,Childrens Services,Additional Hire, ,11/12/14,800.00 ,,Redacted
5183698,THE FAMILY UNIT LTD,Children's Services,Childrens Services,Cash Grants,,15/12/14,277.00 ,,Social Community Care
5183698,THE FAMILY UNIT LTD,Children's Services,Childrens Services,Living With Formal Support,,15/12/14,600.00 ,,Social Community Care
5183699,IAN COOK,Asset Mgmt & Investment Partnership Mgmt,Places,Hired Transport,Business Payment,10/12/14,560.00 ,,Redacted
5183700,THE FAMILY UNIT LTD,Children's Services,Childrens Services,Living With Formal Support,,15/12/14,"5,000.00 ",,Social Community Care
5183701,M J DELANEY & CO LTD,Neighbourhoods & Communities,"Community, Adult & Adults Early Intervention",Painting Works,,11/12/14,990.00 ,,"Works - Construction, Repair & Maintenance"
5183705,"TAMESIDE, OLDHAM AND GLOSSOP MIND",Adult Services,"Community, Adult & Adults Early Intervention",Professional Services,,08/12/14,"1,254.60 ",,Social Community Care Supplies & Services
5183715,COMFORT CALL LIMITED,Adult Services,"Community, Adult & Adults Early Intervention",Homecare Fees,,11/12/14,"29,681.75 ",,Medical
5183717,,Adult Services,"Community, Adult & Adults Early Intervention",Day Care Fees,Redacted Supplier,10/12/14,592.82 ,,Redacted
5183718,TAMESIDE SPORTS TRUST,Adult Services,"Community, Adult & Adults Early Intervention",Professional Services,,08/12/14,"4,253.40 ",,Leisure Services
5183719,,Adult Services,"Community, Adult & Adults Early Intervention",Residential Home Short Stay Fees,Redacted Supplier,10/12/14,675.05 ,,Redacted
5183723,TAMESIDE ARTS LTD,Adult Services,"Community, Adult & Adults Early Intervention",Professional Services,,08/12/14,"1,224.00 ",,Leisure Services
5183726,CBS (NORTH WEST) LTD,Operations,Places,General Materials,,11/12/14,"1,850.00 ",,"Works - Construction, Repair & Maintenance"
5183728,CASH BOX CREDIT UNION LTD,Neighbourhoods & Communities,"Community, Adult & Adults Early Intervention",Professional Services,,18/12/14,"5,333.33 ",,Charities and Voluntary Organisations
5183738,ABOUT TAMESIDE,Sustainable Growth,Places,"Marketing, Publicity and Recruitment",,10/12/14,520.00 ,,Public Bodies
5183740,FAB EVENTS LIMITED,Sustainable Growth,Places,Professional Entertainment Services,,10/12/14,610.00 ,,Facilities & Management Services
5183741,FAB EVENTS LIMITED,Sustainable Growth,Places,Professional Entertainment Services,,10/12/14,630.00 ,,Facilities & Management Services
5183743,REAL REINDEER LTD,Sustainable Growth,Places,Professional Entertainment Services,,10/12/14,647.50 ,,Leisure Services
5183745,BROXAP LIMITED,Operations,Places,General Materials,,23/12/14,"9,250.00 ",,Highway Equipment & Materials�
5183747,CASH BOX CREDIT UNION,Neighbourhoods & Communities,"Community, Adult & Adults Early Intervention",Emergency Grant Payments,,18/12/14,"20,000.00 ",,Unclassifiable
5183753,NETWORK CONNECT LTD,Multiple Heads of Service,Multiple Strategic Directorates,Communications Equipment,,15/12/14,723.36 ,,Redacted
5183755,NEW CHARTER HOUSING TRUST GROUP,Neighbourhoods & Communities,"Community, Adult & Adults Early Intervention",Contributions,,10/12/14,"4,166.66 ",,Social Community Care Supplies & Services
5183756,ABLE CARE AND SUPPORT SERVICES LTD,Adult Services,"Community, Adult & Adults Early Intervention",Homecare Fees,,11/12/14,"1,990.91 ",,Social Community Care Supplies & Services
5183758,FAIRWAY LANDSCAPES LTD,Operations,Places,General Materials,,23/12/14,"13,316.39 ",,"Works - Construction, Repair & Maintenance"
5183761,,Children's Services,Childrens Services,Living With Formal Support,Redacted Supplier,15/12/14,"8,562.90 ",,Redacted
5183762,,Education Services,Childrens Services,Subsistence,Redacted Supplier,10/12/14,259.47 ,,Redacted
5183762,,Education Services,Childrens Services,Travel Costs,Redacted Supplier,10/12/14,"1,133.00 ",,Redacted
5183763,CBS (NORTH WEST) LTD,Environmental Services,"Economic Growth, Investment and Sustainability",Engineers -External,,11/12/14,"1,544.59 ",,"Works - Construction, Repair & Maintenance"
5183771,KIDDIVOUCHERS LTD,Multiple Heads of Service,Multiple Strategic Directorates,Debits,,10/12/14,587.94 ,,Public Bodies
5183772,KIDDIVOUCHERS LTD,Multiple Heads of Service,Multiple Strategic Directorates,Debits,,15/12/14,609.17 ,,Public Bodies
5183775,STEP AHEAD RESOURCE SERVICES,Children's Services,Childrens Services,Living Without Formal Support,,23/12/14,750.00 ,,Social Community Care
5183776,STEP AHEAD RESOURCE SERVICES,Children's Services,Childrens Services,Living Without Formal Support,,23/12/14,750.00 ,,Social Community Care
5183778,STEP AHEAD RESOURCE SERVICES,Children's Services,Childrens Services,Living Without Formal Support,,23/12/14,750.00 ,,Social Community Care
5183781,,Adult Services,"Community, Adult & Adults Early Intervention",Homecare Fees,Redacted Supplier,11/12/14,"4,448.22 ",,Redacted
5183792,INSPIREDSPACES TAMESIDE(PROJECTCO1) LTD,Asset Mgmt & Investment Partnership Mgmt,Places,Free School Meal Costs,,10/12/14,"8,983.10 ",,"Works - Construction, Repair & Maintenance"
5183792,INSPIREDSPACES TAMESIDE(PROJECTCO1) LTD,Asset Mgmt & Investment Partnership Mgmt,Places,Unitary Charge Payments,,10/12/14,"522,567.69 ",,"Works - Construction, Repair & Maintenance"
5183792,INSPIREDSPACES TAMESIDE(PROJECTCO1) LTD,Asset Mgmt & Investment Partnership Mgmt,Places,Utilities,,10/12/14,"30,618.05 ",,"Works - Construction, Repair & Maintenance"
5183798,PYRAMID SCHOOLS (TAMESIDE) LTD,Asset Mgmt & Investment Partnership Mgmt,Places,Free School Meal Costs,,10/12/14,"31,961.55 ",,"Works - Construction, Repair & Maintenance"
5183798,PYRAMID SCHOOLS (TAMESIDE) LTD,Asset Mgmt & Investment Partnership Mgmt,Places,Social Training,,10/12/14,"4,340.63 ",,"Works - Construction, Repair & Maintenance"
5183798,PYRAMID SCHOOLS (TAMESIDE) LTD,Asset Mgmt & Investment Partnership Mgmt,Places,Unitary Charge Payments,,10/12/14,"265,144.01 ",,"Works - Construction, Repair & Maintenance"
5183798,PYRAMID SCHOOLS (TAMESIDE) LTD,Asset Mgmt & Investment Partnership Mgmt,Places,Utilities,,10/12/14,"8,102.18 ",,"Works - Construction, Repair & Maintenance"
5183800,PAYPOINT COLLECTIONS LTD,Neighbourhoods & Communities,"Community, Adult & Adults Early Intervention",Emergency Grant Payments,,10/12/14,"1,292.00 ",,Unclassifiable
5183802,INSPIREDSPACES TAMESIDE LTD,Asset Mgmt & Investment Partnership Mgmt,Places,Free School Meal Costs,,10/12/14,"2,960.20 ",,Consultancy
5183802,INSPIREDSPACES TAMESIDE LTD,Asset Mgmt & Investment Partnership Mgmt,Places,Non-Authority Accommodation Rental,,10/12/14,"65,222.66 ",,Consultancy
5183802,INSPIREDSPACES TAMESIDE LTD,Asset Mgmt & Investment Partnership Mgmt,Places,Refreshments,,10/12/14,"1,687.20 ",,Consultancy
5183802,INSPIREDSPACES TAMESIDE LTD,Asset Mgmt & Investment Partnership Mgmt,Places,Utilities,,10/12/14,"9,234.75 ",,Consultancy
5183804,GREENSCAPE,Adult Services,"Community, Adult & Adults Early Intervention",Professional Services,,15/12/14,"21,000.00 ",,"Works - Construction, Repair & Maintenance"
5183808,,Adult Services,"Community, Adult & Adults Early Intervention",Day Care Fees,Redacted Supplier,10/12/14,989.15 ,,Redacted
5183815,HITESH PAREKH,Neighbourhoods & Communities,"Community, Adult & Adults Early Intervention",Other Accomodation Related Costs,Business Payment,10/12/14,500.00 ,,Unclassifiable
5183816,,Adult Services,"Community, Adult & Adults Early Intervention",Day Care Fees,Redacted Supplier,10/12/14,584.36 ,,Redacted
5183825,WICK CE PRIMARY SCHOOL,Children's Services,Childrens Services,Professional Services,,15/12/14,"1,420.02 ",,Unclassifiable
5183830,FAIRWAY LANDSCAPES LTD,Operations,Places,General Materials,,23/12/14,"3,594.20 ",,"Works - Construction, Repair & Maintenance"
5183836,INSPIREDSPACES TAMESIDE LTD,Asset Management and Investment Partnership Management,"Economic Growth, Investment and Sustainability",Other Works,,10/12/14,"507,601.24 ",,Consultancy
5183871,RANDSTAD EDUCATION LIMITED,Education Services,Childrens Services,Agency Staff,,10/12/14,840.00 ,,Education
5183873,RANDSTAD EDUCATION LIMITED,Education Services,Childrens Services,Agency Staff,,10/12/14,575.00 ,,Education
5183875,MR KELVIN RUTLEDGE QC,Adult Services,"Community, Adult & Adults Early Intervention",Legal Fees,Business Payment,23/12/14,"1,200.00 ",,Unclassifiable
5183876,RANDSTAD EDUCATION LIMITED,Education Services,Childrens Services,Agency Staff,,10/12/14,630.00 ,,Education
5183878,FRIENDS OF OXFORD PARK,Neighbourhoods & Communities,"Community, Adult & Adults Early Intervention",Room Hire,,10/12/14,"1,040.00 ",,Human Resources
5183880,GREYSTONES TAMESIDE LTD,Neighbourhoods & Communities,"Community, Adult & Adults Early Intervention",Supporting People Gross Contract,,10/12/14,"14,212.87 ",,Financial Services
5183881,GREYSTONES TAMESIDE LTD,Neighbourhoods & Communities,"Community, Adult & Adults Early Intervention",Supporting People Gross Contract,,10/12/14,"8,333.33 ",,Financial Services
5183882,,Adult Services,"Community, Adult & Adults Early Intervention",Homecare Fees,Redacted Supplier,15/12/14,750.00 ,,Redacted
5183894,ADULLAM HOMES HOUSING ASSOC LTD,Neighbourhoods & Communities,"Community, Adult & Adults Early Intervention",Supporting People Gross Contract,,11/12/14,"37,226.00 ",,Social Community Care Supplies & Services
5183895,MATTHEW COOKE T/A THE TRAINING CO,People & Performance,Director of Governance,Training Course Costs,,17/12/14,712.00 ,,Unclassifiable
5183896,UNITED UTILITIES WATER PLC,Operations,Places,Water Rates,,23/12/14,"2,716.79 ",,Utilities
5183900,MATTHEW COOKE T/A THE TRAINING CO,People & Performance,Director of Governance,Training Course Costs,,17/12/14,674.00 ,,Unclassifiable
5183902,ROGER HANNAH & CO,Tameside Investment Partnership,Places,Building Maintenance,,10/12/14,"1,200.00 ",,Legal Services
5183903,MATTHEW COOKE T/A THE TRAINING CO,People & Performance,Director of Governance,Training Course Costs,,10/12/14,636.00 ,,Unclassifiable
5183909,CARE UK HOMECARE,Adult Services,"Community, Adult & Adults Early Intervention",Homecare Fees,,10/12/14,"28,477.67 ",,Social Community Care Supplies & Services
5183910,PLANTATION INVESTMENTS LIMITED,Tameside Investment Partnership,Places,Chief/Ground Rent,,10/12/14,"53,337.00 ",,Unclassifiable
5183911,CITY LIFT SERVICES (NW) LTD,Adult Services,"Community, Adult & Adults Early Intervention",Adaptations To Buildings,,18/12/14,"1,900.00 ",,Redacted
5183918,TAMESIDE HOSPITAL NHS FOUNDATION TRUST,Public Health,Public Health,Professional Services,,10/12/14,"2,630.83 ",,Unclassifiable
5183921,MEDICO NURSING AND HOMECARE,Adult Services,"Community, Adult & Adults Early Intervention",Homecare Fees,,10/12/14,"12,328.29 ",,Social Community Care Supplies & Services
5183932,MR KELVIN RUTLEDGE QC,Adult Services,"Community, Adult & Adults Early Intervention",Legal Fees,Business Payment,19/12/14,"1,800.00 ",,Unclassifiable
5183938,RANDSTAD EDUCATION LIMITED,Education Services,Childrens Services,Agency Staff,,17/12/14,575.00 ,,Education
5183943,RANDSTAD EDUCATION LIMITED,Education Services,Childrens Services,Agency Staff,,17/12/14,"1,050.00 ",,Education
5183944,EXPERIAN LTD,Audit & Risk Management,Director of Finance,Professional Services,,23/12/14,"1,155.50 ",,Financial Services
5183952,TRIANGLE CARE GROUP,Children's Services,Childrens Services,Living Without Formal Support,,15/12/14,900.00 ,,Redacted
5183955,RANDSTAD EDUCATION LIMITED,Education Services,Childrens Services,Agency Staff,,17/12/14,650.00 ,,Education
5183962,RANDSTAD EDUCATION LIMITED,Education Services,Childrens Services,Agency Staff,,17/12/14,"1,050.00 ",,Education
5183968,ADDLESHAW GODDARD,Asset Management and Investment Partnership Management,"Economic Growth, Investment and Sustainability",Legal - External,,23/12/14,"3,816.50 ",,Unclassifiable
5183976,MANCHESTER MENTAL HEALTH & SOCIAL CARE TRUST,Other Services,Director of Finance,Indirect Employee Pay Expenditure,,15/12/14,"3,601.91 ",,Consultancy
5183977,BIRTENSHAW SCHOOL,Education Services,Childrens Services,Voluntary Organisations Fees,,10/12/14,"5,811.00 ",,Redacted
5183978,BIRTENSHAW SCHOOL,Education Services,Childrens Services,Voluntary Organisations Fees,,10/12/14,"5,811.00 ",,Redacted
5183979,MISS SARAH DONALDSON,Children's Services,Childrens Services,Legal Fees,Business Payment,10/12/14,950.00 ,,Legal Services
5183980,BIRTENSHAW SCHOOL,Education Services,Childrens Services,Voluntary Organisations Fees,,10/12/14,"5,874.86 ",,Redacted
5183981,MISS JANICE WILLS,Children's Services,Childrens Services,Legal Fees,Business Payment,18/12/14,"2,050.00 ",,Legal Services
5183982,MISS JANICE WILLS,Children's Services,Childrens Services,Legal Fees,Business Payment,23/12/14,950.00 ,,Legal Services
5183983,MISS JANICE WILLS,Children's Services,Childrens Services,Legal Fees,Business Payment,23/12/14,"6,940.00 ",,Legal Services
5183984,CENTREWIRE LTD,Operations,Places,General Materials,,23/12/14,554.00 ,,Unclassifiable
5183986,MISS RACHAEL HEPPENSTALL,Children's Services,Childrens Services,Legal Fees,Business Payment,10/12/14,500.00 ,,Unclassifiable
5183989,EMO OIL LTD,Operations,Places,Fuel Oil,,11/12/14,"1,619.40 ",,Utilities
5183991,MISS KATE BRAMALL,Children's Services,Childrens Services,Legal Fees,Business Payment,10/12/14,"2,050.00 ",,Unclassifiable
5183992,MISS LUKHVINDER KAUR,Children's Services,Childrens Services,Legal Fees,Business Payment,10/12/14,"3,000.00 ",,Unclassifiable
5183998,WILLIAMS WOODWARD LTD,Resource Management,Director of Finance,Professional Consultancy Services,,23/12/14,"1,660.00 ",,Redacted
5184001,STOCKPORT NHS FOUNDATION TRUST,Public Health,Public Health,Professional Services,,11/12/14,"281,774.00 ",,Medical
5184003,KINGS CHAMBERS,Sustainable Growth,Places,Legal Fees,,10/12/14,900.00 ,,Public Bodies
5184008,INSIGHT MEDIA INTERNET LTD,Neighbourhoods & Communities,"Community, Adult & Adults Early Intervention",Computer Software,,23/12/14,"2,092.59 ",,Information Communication Technology
5184010,METRIC GROUP LTD,Technical,Places,General Materials,,23/12/14,"2,965.50 ",,Traffic Management
5184013,MAKING SPACE,Adult Services,"Community, Adult & Adults Early Intervention",Voluntary Organisations Fees,,23/12/14,"20,735.75 ",,Social Community Care Supplies & Services
5184014,LEGGETT PSYCHOLOGY LTD,Education Services,Childrens Services,Professional Services,,23/12/14,"1,400.00 ",,Education
5184020,LINDY ELECTRONICS LTD,Digital Tameside,Places,It Equipment,,23/12/14,"1,252.50 ",,Information Communication Technology
5184021,ALLIED HEALTHCARE GROUP LTD (MEDICO),Adult Services,"Community, Adult & Adults Early Intervention",Homecare Fees,,10/12/14,"12,171.06 ",,Social Community Care Supplies & Services
5184026,NORTHGATE INFORMATION SOLUTIONS UK LTD,Neighbourhoods & Communities,"Community, Adult & Adults Early Intervention",Computer Hardware Purchase,,23/12/14,"1,239.12 ",,Information Communication Technology
5184029,PENNINE CARE NHS TRUST,Public Health,Public Health,Professional Services,,23/12/14,"256,203.00 ",,Social Community Care Supplies & Services
5184030,DR RICHARD SKELTON,Education Services,Childrens Services,Professional Services,Business Payment,23/12/14,"6,400.00 ",,Medical
5184038,ALTERNATIVE FUTURES GROUP,Adult Services,"Community, Adult & Adults Early Intervention",Homecare Fees,,17/12/14,"14,639.05 ",,Social Community Care Supplies & Services
5184041,TRANSITIONAL PLUS CARE CIC LTD,Children's Services,Childrens Services,Living With Formal Support,,17/12/14,"3,764.29 ",,Social Community Care Supplies & Services
5184042,NORTH WEST COMMUNITY  SERVICES (GTR M/CR) LTD,Adult Services,"Community, Adult & Adults Early Intervention",Homecare Fees,,18/12/14,968.13 ,,Social Community Care Supplies & Services
5184043,NORTH WEST COMMUNITY  SERVICES (GTR M/CR) LTD,Adult Services,"Community, Adult & Adults Early Intervention",Homecare Fees,,18/12/14,"1,655.19 ",,Social Community Care Supplies & Services
5184047,ADDLESHAW GODDARD,Asset Management and Investment Partnership Management,"Economic Growth, Investment and Sustainability",Legal - External,,23/12/14,"1,633.00 ",,Unclassifiable
5184051,ADDLESHAW GODDARD,Asset Mgmt & Investment Partnership Mgmt,Places,Legal Fees,,23/12/14,"12,708.03 ",,Unclassifiable
5184052,NEW BRIDGE HORIZONS,Adult Services,"Community, Adult & Adults Early Intervention",Homecare Fees,,18/12/14,"2,335.00 ",,Social Community Care Supplies & Services
5184057,NEW BRIDGE HORIZONS,Adult Services,"Community, Adult & Adults Early Intervention",Homecare Fees,,18/12/14,508.00 ,,Social Community Care Supplies & Services
5184064,NEW BRIDGE HORIZONS,Adult Services,"Community, Adult & Adults Early Intervention",Homecare Fees,,18/12/14,"2,335.00 ",,Social Community Care Supplies & Services
5184065,THE PENNINE ACUTE HOSPITALS NHS TRUST,Public Health,Public Health,Professional Services,,19/12/14,"1,117.00 ",,Medical
5184067,SPECIALISED HOMES AND LODGINGS LTD,Children's Services,Childrens Services,Living Without Formal Support,,15/12/14,"3,321.42 ",,Unclassifiable
5184073,GEORGE HOUSE TRUST,Public Health,Public Health,Professional Services,,17/12/14,"1,750.00 ",,Medical
5184074,GO OUTDOORS LTD,Education Services,Childrens Services,Educational Equipment,,17/12/14,672.92 ,,Clothing
5184088,RANDSTAD EDUCATION LIMITED,Education Services,Childrens Services,Agency Staff,,17/12/14,"2,780.10 ",,Education
5184090,SPECIALISED HOMES AND LODGINGS LTD,Children's Services,Childrens Services,Living With Formal Support,,15/12/14,"11,131.42 ",,Unclassifiable
5184091,ASDA BUSINESS REWARDS,Strategy & Early Intervention,Childrens Services,"Activity (Materials, Trips)",,15/12/14,"1,657.50 ",,Unclassifiable
5184100,SLATER & GORDON (UK) LLP CLIENT ACCOUNT 1,Multiple Heads of Service,Multiple Strategic Directorates,Claims Settled,,10/12/14,"2,500.00 ",,Unclassifiable
5184109,KEYS CHILDCARE LTD,Education Services,Childrens Services,Voluntary Organisations Fees,,22/12/14,"2,250.00 ",,Social Community Care
5184111,HEALTH MANAGEMENT (UK) LTD,People & Performance,Director of Governance,Professional services,,23/12/14,"6,723.77 ",,Medical
5184115,POSTAGE BY PHONE PITNEY BOWES LTD,Exchequer,Director of Finance,Postages,,10/12/14,"9,987.20 ",,Mail Services�
5184117,KEYS CHILDCARE LTD,Education Services,Childrens Services,Voluntary Organisations Fees,,22/12/14,"2,250.00 ",,Social Community Care
5184119,BOTTOMLINE TECHNOLOGIES LIMITED,Digital Tameside,Places,Computer Hardware Maintenance Costs,,22/12/14,"1,287.50 ",,Information Communication Technology
5184132,THE UNIVERSITY OF MANCHESTER,Education Services,Childrens Services,Training Course Costs,,18/12/14,"2,450.00 ",,Unclassifiable
5184138,SKILLS AND WORKS SOLUTIONS LTD,Technical,Places,Training Course Costs,,23/12/14,"1,250.00 ",,Human Resources
5184139,BARNSLEY M B C,Operations,Places,General Materials,,15/12/14,"1,500.00 ",,Non 3rd Party spend  
5184140,FRESH START INDEPENDENCE PROJECT LTD,Children's Services,Childrens Services,Living With Formal Support,,10/12/14,"1,207.31 ",,Social Community Care Supplies & Services
5184141,FRESH START INDEPENDENCE PROJECT LTD,Children's Services,Childrens Services,Living With Formal Support,,10/12/14,"1,149.96 ",,Social Community Care Supplies & Services
5184142,TAMESIDE HOSPITAL NHS FOUNDATION TRUST,Public Health,Public Health,Professional Services,,10/12/14,"18,750.00 ",,Unclassifiable
5184143,FOUNDATION (CENTRAL SERVICES),Neighbourhoods & Communities,"Community, Adult & Adults Early Intervention",Supporting People Gross Contract,,23/12/14,"35,000.00 ",,Redacted
5184144,CARRICK SIGNS LTD,"Media, Marketing & Communications",Director of Governance,Printing And Stationery,,23/12/14,558.00 ,,Building Construction Materials
5184149,,Multiple Heads of Service,Multiple Strategic Directorates,Claims Settled,Redacted Supplier,10/12/14,"1,680.00 ",,Redacted
5184152,INSPIREDSPACES TAMESIDE LTD,Asset Management and Investment Partnership Management,"Economic Growth, Investment and Sustainability",Other Works,,22/12/14,"705,270.16 ",,Consultancy
5184152,INSPIREDSPACES TAMESIDE LTD,Asset Management and Investment Partnership Management,"Economic Growth, Investment and Sustainability",Refurbishment Construction Costs,,22/12/14,"252,332.34 ",,Consultancy
5184152,INSPIREDSPACES TAMESIDE LTD,Asset Mgmt & Investment Partnership Mgmt,Places,Professional Services,,22/12/14,"80,900.00 ",,Consultancy
5184152,INSPIREDSPACES TAMESIDE LTD,Asset Mgmt & Investment Partnership Mgmt,Places,Repairs & Maintenance Cleaning/Domestic Equipment,,22/12/14,"13,051.12 ",,Consultancy
5184153,INSPIREDSPACES TAMESIDE LTD,Tameside Investment Partnership,"Economic Growth, Investment and Sustainability",Refurbish Accommodation Works,,22/12/14,"7,580.95 ",,Consultancy
5184153,INSPIREDSPACES TAMESIDE LTD,Tameside Investment Partnership,"Economic Growth, Investment and Sustainability",Survey/Surveyors Fees,,22/12/14,"1,798.50 ",,Consultancy
5184153,INSPIREDSPACES TAMESIDE LTD,Tameside Investment Partnership,Places,Contract Cleaning Costs ,,22/12/14,"480,480.83 ",,Consultancy
5184153,INSPIREDSPACES TAMESIDE LTD,Capital Prog,(blank),Asbestos Removal,,22/12/14,"14,769.50 ",,Consultancy
5184153,INSPIREDSPACES TAMESIDE LTD,Capital Prog,(blank),Survey/Surveyors Fees,,22/12/14,"10,944.69 ",,Consultancy
5184154,JO EDWARDS,Children's Services,Childrens Services,Professional Services,Business Payment,10/12/14,"1,260.00 ",,Unclassifiable
5184163,VODAFONE,Digital Tameside,Places,Telephone Landline Costs, ,15/12/14,"1,890.18 ",,Information Communication Technology
5184165,,Adult Services,"Community, Adult & Adults Early Intervention",Contribution to Maintenance Fee Income,Redacted Supplier,11/12/14,976.86 ,,Redacted
5184172,,Environmental Services,Places,Burial Fees,Redacted Supplier,11/12/14,"1,539.00 ",,Redacted
5184173,QUEST MEDIA NETWORKS LTD,"Media, Marketing & Communications",Director of Governance,"Marketing, Publicity and Recruitment",,15/12/14,"1,645.20 ",,Unclassifiable
5184179,HOWARD COOK,Education Services,Childrens Services,Professional Services,Business Payment,10/12/14,680.00 ,,Unclassifiable
5184181,LIME TRAVEL,Strategy & Early Intervention,Childrens Services,Hired Transport,,10/12/14,"2,118.50 ",,Human Resources
5184182,MOSSLEY PRIVATE HIRE,Strategy & Early Intervention,Childrens Services,Hired Transport,,10/12/14,"1,740.00 ",,Redacted
5184183,P MEADOWCROFT,Technical,Places,Hired Transport,Business Payment,10/12/14,"1,520.00 ",,Unclassifiable
5184187,MOSSLEY PRIVATE HIRE,Technical,Places,Hired Transport,,10/12/14,"1,180.00 ",,Redacted
5184188,MARK HARLOW,Technical,Places,Hired Transport,Business Payment,10/12/14,600.00 ,,Redacted
5184190,PARKLANE,Technical,Places,Hired Transport,,10/12/14,"1,584.00 ",,Transport
5184193,MARK HARLOW,Technical,Places,Hired Transport,Business Payment,10/12/14,"1,330.00 ",,Redacted
5184194,PARKLANE,Technical,Places,Hired Transport,,10/12/14,"1,920.00 ",,Transport
5184198,MR JOHN DELANEY,Technical,Places,Hired Transport,Business Payment,10/12/14,"1,700.00 ",,Unclassifiable
5184199,MOSSLEY PRIVATE HIRE,Technical,Places,Hired Transport,,10/12/14,"1,256.00 ",,Redacted
5184200,B MORRELL,Technical,Places,Hired Transport,Business Payment,10/12/14,"1,060.00 ",,Social Community Care
5184201,MOSSLEY PRIVATE HIRE,Technical,Places,Hired Transport,,10/12/14,680.00 ,,Redacted
5184203,RADIO CABS (ASHTON)LTD,Education Services,Childrens Services,Transport Of Ola Pupils,,10/12/14,"1,908.00 ",,Redacted
5184205,RADIO CABS (ASHTON)LTD,Education Services,Childrens Services,Transport Of Ola Pupils,,10/12/14,"1,846.80 ",,Redacted
5184206,J & R TAXIS LTD,Technical,Places,Hired Transport,,10/12/14,"2,000.00 ",,Redacted
5184213,ACE SAFETY ACADEMY,Operations,Places,Training Course Costs,,17/12/14,500.00 ,,Unclassifiable
5184228,BOTTOMLINE TECHNOLOGIES LIMITED,Digital Tameside,Places,It Equipment,,10/12/14,"1,000.00 ",,Information Communication Technology
5184237,K P DODD CONSTRUCTION LTD,Housing,"Economic Growth, Investment and Sustainability",Improvement Grants - Final Mandatory,,10/12/14,"9,000.00 ",,"Works - Construction, Repair & Maintenance"
5184238,SOUTHERN ELECTRIC GAS,Tameside Investment Partnership,Places,Electricity,,19/12/14,541.18 ,,Public Bodies
5184239,NPOWER LIMITED,Tameside Investment Partnership,Places,Electricity,,22/12/14,557.84 ,,Utilities
5184244,CHILDREN OUR ULTIMATE INVESTMENT UK - TEENS AND TODDLERS,Public Health,Public Health,Professional Child Services,,15/12/14,"40,000.00 ",,Social Community Care Supplies & Services
5184245,STEPHEN MARTLEW - LANDSCAPE ARTICHTECTRURE LTD,Operations,Places,General Equipment Purchase,,23/12/14,"2,811.17 ",,"Works -  Construction, Repair & Maintenance"
5184252,,Adult Services,"Community, Adult & Adults Early Intervention",Contribution to Maintenance Fee Income,Redacted Supplier,11/12/14,"2,144.36 ",,Redacted
5184256,NPOWER LIMITED,Tameside Investment Partnership,Places,Electricity,,22/12/14,557.94 ,,Utilities
5184258,DOMAIN CARE NORTH WEST LTD,Adult Services,"Community, Adult & Adults Early Intervention",Homecare Fees,,22/12/14,"2,100.00 ",,Social Community Care
5184261,NPOWER LIMITED,Tameside Investment Partnership,Places,Electricity,,22/12/14,545.69 ,,Utilities
5184264,PENDLE PRODUCTIONS,Sustainable Growth,Places,Professional Entertainment Services,,11/12/14,"1,200.00 ",,Leisure Services
5184265,NPOWER LIMITED,Tameside Investment Partnership,Places,Electricity,,22/12/14,571.87 ,,Utilities
5184267,DAISY COMMUNICATIONS LTD,Multiple Heads of Service,Multiple Strategic Directorates,Debits,,23/12/14,"5,243.75 ",,Public Bodies
5184273,,Adult Services,"Community, Adult & Adults Early Intervention",Homecare Fees,Redacted Supplier,11/12/14,835.96 ,,Redacted
5184279,ALLIE POWER,Exchequer,Director of Finance,Miscellaneous Expenses,Business Payment,11/12/14,553.62 ,,Unclassifiable
5184289,DOMAIN CARE NORTH WEST LTD,Adult Services,"Community, Adult & Adults Early Intervention",Homecare Fees,,22/12/14,"1,440.00 ",,Social Community Care
5184302,NPOWER LIMITED,Tameside Investment Partnership,Places,Electricity,,22/12/14,596.72 ,,Utilities
5184303,RANDSTAD EDUCATION LIMITED,Education Services,Childrens Services,Agency Staff,,17/12/14,"1,260.00 ",,Education
5184308,RANDSTAD EDUCATION LIMITED,Education Services,Childrens Services,Agency Staff,,17/12/14,"1,050.00 ",,Education
5184310,RANDSTAD EDUCATION LIMITED,Education Services,Childrens Services,Agency Staff,,17/12/14,650.00 ,,Education
5184311,RANDSTAD EDUCATION LIMITED,Education Services,Childrens Services,Agency Staff,,17/12/14,"1,050.00 ",,Education
5184312,NPOWER LIMITED,Tameside Investment Partnership,Places,Electricity,,22/12/14,583.86 ,,Utilities
5184317,MRL HEALTHCARE LIMITED,Adult Services,"Community, Adult & Adults Early Intervention",Homecare Fees,,11/12/14,"14,120.83 ",,Social Community Care Supplies & Services
5184317,MRL HEALTHCARE LIMITED,Resource Management,Director of Finance,Homecare Fees,,11/12/14,"13,803.94 ",,Social Community Care Supplies & Services
5184322,MRL HEALTHCARE LIMITED,Adult Services,"Community, Adult & Adults Early Intervention",Homecare Fees,,11/12/14,"30,000.00 ",,Social Community Care Supplies & Services
5184323,MRL HEALTHCARE LIMITED,Adult Services,"Community, Adult & Adults Early Intervention",Homecare Fees,,11/12/14,"30,000.00 ",,Social Community Care Supplies & Services
5184332,,Adult Services,"Community, Adult & Adults Early Intervention",Day Care Fees,Redacted Supplier,11/12/14,554.08 ,,Redacted
5184332,,Adult Services,"Community, Adult & Adults Early Intervention",Residential Home Short Stay Fees,Redacted Supplier,11/12/14,42.06 ,,Redacted
5184336,COMPLETE BACKGROUND SCREENING LTD,People & Performance,Director of Governance,Miscellaneous Expenses,,15/12/14,684.00 ,,Unclassifiable
5184338,COMPLETE BACKGROUND SCREENING LTD,People & Performance,Director of Governance,Miscellaneous Expenses,,15/12/14,"2,205.00 ",,Unclassifiable
5184344,TAMESIDE CITIZENS ADVICE BUREAU,Exchequer,Director of Finance,Professional Services,,18/12/14,"3,500.00 ",,Social Community Care Supplies & Services
5184348,REDDIPAK LIMITED,Operations,Places,General Materials,,17/12/14,"1,048.00 ",,Unclassifiable
5184364,INTEC FOR BUSINESS LTD,Audit & Risk Management,Director of Finance,Training Course Costs,,11/12/14,750.00 ,,Financial Services
5184365,INTEC FOR BUSINESS LTD,Audit & Risk Management,Director of Finance,Project Expenditure Home Office,,11/12/14,"6,200.00 ",,Financial Services
5184376,PROFILE SECURITY SERVICES LIMITED,Technical,Places,Security Services,,23/12/14,"2,528.15 ",,Facilities & Management Services
5184377,PROFILE SECURITY SERVICES LIMITED,Operations,Places,General Materials,,23/12/14,"6,593.40 ",,Facilities & Management Services
5184382,NSL LIMITED,Technical,Places,NSL Fees,,23/12/14,"54,879.64 ",,Traffic Management
5184387,SALFORD CITY COUNCIL,Environmental Services,Places,Professional Services,,23/12/14,"13,800.00 ",,Unclassifiable
5184411,WHITEFERN LTD,Neighbourhoods & Communities,"Community, Adult & Adults Early Intervention",Fixtures & Fittings Purchase,,23/12/14,"1,844.32 ",,Furniture
5184413,WHITEFERN LTD,Neighbourhoods & Communities,"Community, Adult & Adults Early Intervention",Fixtures & Fittings Purchase,,23/12/14,"1,821.21 ",,Furniture
5184414,WHITEFERN LTD,Neighbourhoods & Communities,"Community, Adult & Adults Early Intervention",Fixtures & Fittings Purchase,,23/12/14,"1,821.21 ",,Furniture
5184420,EQUIFAX LTD,Audit & Risk Management,Director of Finance,Professional Services,,23/12/14,"2,632.88 ",,Financial Services
5184421,NPOWER LIMITED,Tameside Investment Partnership,Places,Electricity,,22/12/14,551.92 ,,Utilities
5184423,NPOWER LIMITED,Tameside Investment Partnership,Places,Electricity,,22/12/14,578.22 ,,Utilities
5184427,NPOWER LIMITED,Tameside Investment Partnership,Places,Electricity,,22/12/14,618.52 ,,Utilities
5184430,DOMAIN CARE NORTH WEST LTD,Adult Services,"Community, Adult & Adults Early Intervention",Homecare Fees,,22/12/14,639.60 ,,Social Community Care
5184431,DOMAIN CARE NORTH WEST LTD,Adult Services,"Community, Adult & Adults Early Intervention",Homecare Fees,,22/12/14,"1,860.00 ",,Social Community Care
5184432,CASCADE MACHINERY SUPPLIES LTD,Operations,Places,General Materials,,18/12/14,"2,678.00 ",,Vehicles
5184438,GT LAW SOLICITORS,Multiple Heads of Service,Multiple Strategic Directorates,Claims Settled,,15/12/14,"4,000.00 ",,Unclassifiable
5184441,TAMESIDE HOSPITAL NHS FOUNDATION TRUST,Public Health,Public Health,Professional Services,,15/12/14,"2,791.93 ",,Unclassifiable
5184446,INSPIREDSPACES TAMESIDE LTD,Asset Management and Investment Partnership Management,"Economic Growth, Investment and Sustainability",Refurbishment Construction Costs,,22/12/14,"201,900.41 ",,Consultancy
5184446,INSPIREDSPACES TAMESIDE LTD,Asset Mgmt & Investment Partnership Mgmt,Places,Building Repairs,,22/12/14,"17,269.35 ",,Consultancy
5184446,INSPIREDSPACES TAMESIDE LTD,Asset Mgmt & Investment Partnership Mgmt,Places,Refreshments,,22/12/14,"70,933.38 ",,Consultancy
5184446,INSPIREDSPACES TAMESIDE LTD,Education Services,Childrens Services,Building Repairs,,22/12/14,"14,180.90 ",,Consultancy
5184446,INSPIREDSPACES TAMESIDE LTD,Tameside Investment Partnership,Places,Building Repairs,,22/12/14,"2,278.10 ",,Consultancy
5184456,STAMFORD CARS UK LTD,Technical,Places,Hired Transport,,15/12/14,"1,100.00 ",,Redacted
5184458,FENTONS TAXIS,Education Services,Childrens Services,Transport Of Pupils,,15/12/14,"1,577.00 ",,Redacted
5184459,GLENN CAWTHORN,Education Services,Childrens Services,Transport Of Pupils,Business Payment,15/12/14,"1,180.00 ",,Redacted
5184460,MICHAEL WILD,Education Services,Childrens Services,Transport Of Pupils,Business Payment,15/12/14,"2,040.00 ",,Unclassifiable
5184461,G M GREEN,Education Services,Childrens Services,Transport Of Pupils,Business Payment,15/12/14,"1,400.00 ",,Social Community Care Supplies & Services
5184462,ROYALE MINICOACHES,Education Services,Childrens Services,Transport Of Pupils,,15/12/14,"2,000.00 ",,Unclassifiable
5184463,P MEADOWCROFT,Education Services,Childrens Services,Transport Of Pupils,Business Payment,15/12/14,"1,140.00 ",,Unclassifiable
5184464,B MORRELL,Education Services,Childrens Services,Transport Of Pupils,Business Payment,15/12/14,"1,900.00 ",,Social Community Care
5184466,STAMFORD CARS UK LTD,Technical,Places,Hired Transport,,15/12/14,570.00 ,,Redacted
5184467,STAMFORD CARS UK LTD,Technical,Places,Hired Transport,,15/12/14,"1,620.00 ",,Redacted
5184471,STAMFORD CARS UK LTD,Technical,Places,Hired Transport,,15/12/14,720.00 ,,Redacted
5184473,STAMFORD CARS UK LTD,Technical,Places,Hired Transport,,15/12/14,532.00 ,,Redacted
5184475,DAVID CROZIER,Education Services,Childrens Services,Transport Of Pupils,Business Payment,15/12/14,"1,518.00 ",,Unclassifiable
5184476,DAVID CROZIER,Education Services,Childrens Services,Transport Of Pupils,Business Payment,15/12/14,"1,520.00 ",,Unclassifiable
5184477,DAVID CROZIER,Education Services,Childrens Services,Transport Of Post 16 Pupils,Business Payment,15/12/14,"2,220.00 ",,Unclassifiable
5184478,DAVID CROZIER,Education Services,Childrens Services,Transport Of Post 16 Pupils,Business Payment,15/12/14,"1,920.00 ",,Unclassifiable
5184479,DAVID CROZIER,Education Services,Childrens Services,Transport Of Post 16 Pupils,Business Payment,15/12/14,"1,920.00 ",,Unclassifiable
5184480,STAMFORD CARS UK LTD,Technical,Places,Hired Transport,,15/12/14,800.00 ,,Redacted
5184487,GLM ACCESSIBLE TRANSPORT,Education Services,Childrens Services,Transport Of Pupils,,15/12/14,"1,400.00 ",,Redacted
5184488,GLM ACCESSIBLE TRANSPORT,Education Services,Childrens Services,Transport Of Pupils,,15/12/14,"1,365.00 ",,Redacted
5184489,GLM ACCESSIBLE TRANSPORT,Education Services,Childrens Services,Transport Of Post 16 Pupils,,15/12/14,"1,600.00 ",,Redacted
5184491,LIME TRAVEL,Education Services,Childrens Services,Transport Of Pupils,,15/12/14,"1,820.00 ",,Human Resources
5184492,LIME TRAVEL,Education Services,Childrens Services,Transport Of Pupils,,15/12/14,"1,820.00 ",,Human Resources
5184493,LIME TRAVEL,Education Services,Childrens Services,Transport Of Ola Pupils,,15/12/14,"2,050.00 ",,Human Resources
5184494,LIME TRAVEL,Education Services,Childrens Services,Transport Of Ola Pupils,,15/12/14,"1,643.50 ",,Human Resources
5184495,LIME TRAVEL,Education Services,Childrens Services,Transport Of Pupils,,15/12/14,"1,820.00 ",,Human Resources
5184496,MR JOHN DELANEY,Education Services,Childrens Services,Transport Of Pupils,Business Payment,15/12/14,"2,000.00 ",,Unclassifiable
5184497,MR JOHN DELANEY,Education Services,Childrens Services,Transport Of Pupils,Business Payment,15/12/14,"2,000.00 ",,Unclassifiable
5184498,MR JOHN DELANEY,Education Services,Childrens Services,Transport Of Pupils,Business Payment,15/12/14,"1,800.00 ",,Unclassifiable
5184499,MR JOHN DELANEY,Education Services,Childrens Services,Transport Of Post 16 Pupils,Business Payment,15/12/14,"1,800.00 ",,Unclassifiable
5184501,MOSSLEY PRIVATE HIRE,Education Services,Childrens Services,Transport Of Pupils,,15/12/14,"2,500.00 ",,Redacted
5184508,,Multiple Heads of Service,Multiple Strategic Directorates,Claims Settled,Redacted Supplier,15/12/14,"1,970.00 ",,Redacted
5184509,COMPLETE BACKGROUND SCREENING LTD,People & Performance,Director of Governance,Professional Services,,17/12/14,"1,930.50 ",,Unclassifiable
5184511,COMPLETE BACKGROUND SCREENING LTD,People & Performance,Director of Governance,Professional Services,,17/12/14,"1,023.50 ",,Unclassifiable
5184512,COMPLETE BACKGROUND SCREENING LTD,People & Performance,Director of Governance,Professional Services,,17/12/14,"2,375.00 ",,Unclassifiable
5184513,COMPLETE BACKGROUND SCREENING LTD,Education Services,Childrens Services,Transport Of Pupils,,17/12/14,"2,513.00 ",,Unclassifiable
5184514,THE FAMILY UNIT LTD,Children's Services,Childrens Services,Living With Formal Support,,15/12/14,"3,400.00 ",,Social Community Care
5184515,COMPLETE BACKGROUND SCREENING LTD,People & Performance,Director of Governance,Professional Services,,17/12/14,"1,879.00 ",,Unclassifiable
5184516,STEVE MORRIS EDUCATION,Education Services,Childrens Services,Training Course Costs,,17/12/14,"2,640.00 ",,Human Resources
5184519,THE FAMILY UNIT LTD,Children's Services,Childrens Services,Living With Formal Support,,15/12/14,"3,400.00 ",,Social Community Care
5184521,OLD FORGE FURNITURE,Adult Services,"Community, Adult & Adults Early Intervention",Fixtures & Fittings Purchase,,18/12/14,"1,045.00 ",,Public Bodies
5184522,THE FAMILY UNIT LTD,Children's Services,Childrens Services,Living With Formal Support,,15/12/14,"3,400.00 ",,Social Community Care
5184524,COMMUNITY AND VOLUNTARY ACTION TAMESIDE,Public Health,Public Health,Professional Services,,15/12/14,"5,170.00 ",,Financial Services
5184526,UNIVERSITY OF SALFORD,Sustainable Growth,Places,Commissioned Research/Studies,,15/12/14,"10,475.00 ",,Education
5184529,REMPLOY LIMITED,Adult Services,"Community, Adult & Adults Early Intervention",Agency Staff,,17/12/14,580.52 ,,Education
5184533,,Adult Services,"Community, Adult & Adults Early Intervention",Homecare Fees,Redacted Supplier,15/12/14,552.91 ,,Redacted
5184534,,Adult Services,"Community, Adult & Adults Early Intervention",Contribution to Maintenance Fee Income,Redacted Supplier,15/12/14,544.92 ,,Redacted
5184543,THE FURNISHING SERVICE LTD,Neighbourhoods & Communities,"Community, Adult & Adults Early Intervention",Fixtures & Fittings Purchase,,23/12/14,"1,377.80 ",,Furniture
5184549,,Adult Services,"Community, Adult & Adults Early Intervention",Day Care Fees,Redacted Supplier,17/12/14,587.76 ,,Redacted
5184551,SOLON SECURITY LTD,Neighbourhoods & Communities,"Community, Adult & Adults Early Intervention",Security Equipment,,23/12/14,545.00 ,,Social Community Care Supplies & Services
5184557,THE FURNISHING SERVICE LTD,Neighbourhoods & Communities,"Community, Adult & Adults Early Intervention",Fixtures & Fittings Purchase,,18/12/14,"1,169.12 ",,Furniture
5184569,JOCKEY CLUB RACECOURCES LTD,Children's Services,Childrens Services,Professional Child Services,,23/12/14,"1,112.44 ",,Redacted
5184586,PENNINE CARE IN PATIENT SERVS PRIORY,Education Services,Childrens Services,Voluntary Organisations Fees,,15/12/14,"1,400.00 ",,Social Community Care
5184588,DR MARGARET SMITH,Education Services,Childrens Services,Professional Services,Business Payment,22/12/14,"2,800.00 ",,Medical
5184590,CREATIVE IDEAS IN PRINT LTD,"Media, Marketing & Communications",Director of Governance,Printing And Stationery,,15/12/14,635.00 ,,Facilities & Management Services
5184591,CREATIVE IDEAS IN PRINT LTD,"Media, Marketing & Communications",Director of Governance,Printing And Stationery,,15/12/14,580.19 ,,Facilities & Management Services
5184594,INTACT PROJECTS LIMITED,Children's Services,Childrens Services,Living With Formal Support,,17/12/14,949.00 ,,Social Community Care Supplies & Services
5184609,EXPERIAN LTD,Audit & Risk Management,Director of Finance,Professional Services,,15/12/14,"12,411.70 ",,Financial Services
5184610,INTACT PROJECTS LIMITED,Children's Services,Childrens Services,Living With Formal Support,,17/12/14,910.00 ,,Social Community Care Supplies & Services
5184617,HOWARD COOK,Education Services,Childrens Services,Professional Services,Business Payment,15/12/14,680.00 ,,Unclassifiable
5184619,PAYPOINT COLLECTIONS LTD,Neighbourhoods & Communities,"Community, Adult & Adults Early Intervention",Emergency Grant Payments,,15/12/14,"1,857.00 ",,Unclassifiable
5184620,MRL HEALTHCARE LIMITED,Adult Services,"Community, Adult & Adults Early Intervention",Homecare Fees,,18/12/14,"30,000.00 ",,Social Community Care Supplies & Services
5184621,MRL HEALTHCARE LIMITED,Adult Services,"Community, Adult & Adults Early Intervention",Homecare Fees,,18/12/14,"30,000.00 ",,Social Community Care Supplies & Services
5184625,MERIDIAN HEALTHCARE LTD,Adult Services,"Community, Adult & Adults Early Intervention",Day Centre Fees,,17/12/14,"22,567.50 ",,Social Community Care Supplies & Services
5184631,AGRICULTURAL AND RURAL CENTRE CIC,Education Services,Childrens Services,Professional Services,,18/12/14,960.00 ,,Redacted
5184637,STREETDANCE AND FITNESS,Education Services,Childrens Services,Professional Services,,18/12/14,"1,260.00 ",,Leisure Services
5184640,LUCY FAITHFULL FOUNDATION,Children's Services,Childrens Services,Professional Services,,17/12/14,"1,214.20 ",,Unclassifiable
5184651,NPOWER LIMITED,Tameside Investment Partnership,Places,Electricity,,22/12/14,572.08 ,,Utilities
5184652,DBS,People & Performance,Director of Governance,Professional Consultancy Services,,17/12/14,"4,312.00 ",,Human Resources
5184653,NPOWER LIMITED,Tameside Investment Partnership,Places,Electricity,,22/12/14,682.22 ,,Utilities
5184655,NPOWER LIMITED,Tameside Investment Partnership,Places,Electricity,,22/12/14,"1,488.33 ",,Utilities
5184657,NPOWER LIMITED,Tameside Investment Partnership,Places,Electricity,,22/12/14,"2,079.80 ",,Utilities
5184659,NPOWER LIMITED,Tameside Investment Partnership,Places,Electricity,,22/12/14,851.53 ,,Utilities
5184660,NPOWER LIMITED,Tameside Investment Partnership,Places,Electricity,,22/12/14,876.82 ,,Utilities
5184661,ARTS TAG LTD,Neighbourhoods & Communities,"Community, Adult & Adults Early Intervention",Professional Entertainment Services,,17/12/14,"1,310.00 ",,Leisure Services
5184662,NPOWER LIMITED,Tameside Investment Partnership,Places,Electricity,,22/12/14,"2,563.06 ",,Utilities
5184665,NPOWER LIMITED,Tameside Investment Partnership,Places,Electricity,,22/12/14,"2,459.78 ",,Utilities
5184673,EMPRESS CONNECT,Education Services,Childrens Services,Security Services,,22/12/14,"5,226.00 ",,Information Communication Technology
5184674,MOSSLEY TOWN TEAM,Sustainable Growth,Places,Contributions, ,18/12/14,"1,000.00 ",,Unclassifiable
5184675,TRINITY MIRROR NORTH PUBLISHING LTD,Technical,Places,Statutory Advertising,,17/12/14,"2,022.03 ",,Public Bodies
5184677,OAK LEA HOUSE,Children's Services,Childrens Services,Living Without Formal Support,,17/12/14,"3,360.00 ",,Unclassifiable
5184681,TRIANGLE CARE GROUP,Children's Services,Childrens Services,Living Without Formal Support,,17/12/14,900.00 ,,Redacted
5184690,HMCTS,Children's Services,Childrens Services,Court Fees,,22/12/14,"14,815.00 ",,Non 3rd Party spend  
5184691,GT LAW SOLICITORS,Multiple Heads of Service,Multiple Strategic Directorates,Claims Settled,,18/12/14,"10,000.00 ",,Unclassifiable
5184693,MINI SOIL SURVEYS (CHES & STAFFS) LTD,Operations,Places,Engineers Works,,17/12/14,"1,528.00 ",,Horticultural
5184694,MINI SOIL SURVEYS (CHES & STAFFS) LTD,Technical,Places,Engineers Works,,18/12/14,646.00 ,,Horticultural
5184703,CBRE SPUK II (NO17) LTD,Tameside Investment Partnership,Places,Non-Authority Accommodation Rental,,22/12/14,"4,750.00 ",,Non 3rd Party spend  
5184709,M J DELANEY & CO LTD,Neighbourhoods & Communities,"Community, Adult & Adults Early Intervention",Painting Works,,18/12/14,570.00 ,,"Works - Construction, Repair & Maintenance"
5184710,CALL A CAR (TAMESIDE) LTD,Asset Mgmt & Investment Partnership Mgmt,Places,Hired Transport,,19/12/14,500.00 ,,Human Resources
5184712,CALL A CAR (TAMESIDE) LTD,Asset Mgmt & Investment Partnership Mgmt,Places,Hired Transport,,22/12/14,500.00 ,,Human Resources
5184723,,Adult Services,"Community, Adult & Adults Early Intervention",Contribution to Maintenance Fee Income,Redacted Supplier,18/12/14,"2,463.01 ",,Redacted
5184724,HMCTS - SALFORD BUSINESS CENTRE,Exchequer,Director of Finance,Court Fees,,18/12/14,"5,285.00 ",,Redacted
5184731,,Adult Services,"Community, Adult & Adults Early Intervention",Residential Home Short Stay Fees,Redacted Supplier,18/12/14,588.84 ,,Redacted
5184736,PLUCK ANDREW & CO,Adult Services,"Community, Adult & Adults Early Intervention",Homecare Fees,,23/12/14,"1,894.19 ",,Legal Services
5184739,LANCASHIRE MORTGAGE CORPORATION,Engineers Client,"Economic Growth, Investment and Sustainability",Debits,,23/12/14,"63,766.20 ",,Consultancy
5184742,,Adult Services,"Community, Adult & Adults Early Intervention",Contribution to Maintenance Fee Income,Redacted Supplier,19/12/14,859.04 ,,Redacted
5184747,,Adult Services,"Community, Adult & Adults Early Intervention",Contribution to Maintenance Fee Income,Redacted Supplier,19/12/14,544.92 ,,Redacted
5184748,DENTON LINKS,Education Services,Childrens Services,Transport Of Ola Pupils,,18/12/14,"3,340.00 ",,Redacted
5184750,DENTON LINKS,Education Services,Childrens Services,Transport Of Ola Pupils,,18/12/14,"2,070.00 ",,Redacted
5184752,DENTON LINKS,Children's Services,Childrens Services,Hired Transport,,18/12/14,"1,710.00 ",,Redacted
5184755,DENTON LINKS,Education Services,Childrens Services,Transport Of Ola Pupils,,18/12/14,"1,350.00 ",,Redacted
5184764,,Adult Services,"Community, Adult & Adults Early Intervention",Contribution to Maintenance Fee Income,Redacted Supplier,18/12/14,953.73 ,,Redacted
5184766,,Adult Services,"Community, Adult & Adults Early Intervention",Contribution to Maintenance Fee Income,Redacted Supplier,18/12/14,667.19 ,,Redacted
5184772,STAMFORD CARS UK LTD,Education Services,Childrens Services,Transport Of Post 16 Pupils,,18/12/14,"1,056.00 ",,Redacted
5184774,LIME TRAVEL,Children's Services,Childrens Services,Hired Transport,,18/12/14,"1,600.00 ",,Human Resources
5184776,TAMESIDE VOICES,Adults Early Intervention,"Community, Adult & Adults Early Intervention",Development Monies,,18/12/14,500.00 ,,Unclassifiable
5184778,STAMFORD CARS UK LTD,Education Services,Childrens Services,Transport Of Ola Pupils,,18/12/14,"1,260.00 ",,Redacted
5184779,STAMFORD CARS UK LTD,Education Services,Childrens Services,Transport Of Pupils,,18/12/14,"1,260.00 ",,Redacted
5184780,STAMFORD CARS UK LTD,Education Services,Childrens Services,Transport Of Pupils,,18/12/14,950.00 ,,Redacted
5184781,STAMFORD CARS UK LTD,Education Services,Childrens Services,Transport Of Ola Pupils,,18/12/14,"1,518.00 ",,Redacted
5184785,STAMFORD CARS UK LTD,Education Services,Childrens Services,Transport Of Ola Pupils,,18/12/14,"1,650.00 ",,Redacted
5184786,TAMESIDE SPORTS TRUST,Adult Services,"Community, Adult & Adults Early Intervention",Professional Services,,18/12/14,"5,508.00 ",,Leisure Services
5184787,MICHAEL ADLARD,Children's Services,Childrens Services,Hired Transport,Business Payment,18/12/14,721.50 ,,Transport
5184790,MICHAEL ADLARD,Education Services,Childrens Services,Transport Of Pupils,Business Payment,18/12/14,"2,141.50 ",,Transport
5184792,STAMFORD CARS UK LTD,Education Services,Childrens Services,Transport Of Pupils,,18/12/14,"1,410.75 ",,Redacted
5184794,MICHAEL ADLARD,Education Services,Childrens Services,Transport Of Pupils,Business Payment,18/12/14,"1,680.00 ",,Transport
5184795,STAMFORD CARS UK LTD,Education Services,Childrens Services,Transport Of Ola Pupils,,18/12/14,"1,800.00 ",,Redacted
5184796,STAMFORD CARS UK LTD,Education Services,Childrens Services,Transport Of Pupils,,18/12/14,"1,273.00 ",,Redacted
5184797,STAMFORD CARS UK LTD,Education Services,Childrens Services,Transport Of Pupils,,18/12/14,"1,539.00 ",,Redacted
5184801,STAMFORD CARS UK LTD,Education Services,Childrens Services,Transport Of Ola Pupils,,18/12/14,"2,050.00 ",,Redacted
5184805,STAMFORD CARS UK LTD,Education Services,Childrens Services,Transport Of Pupils,,18/12/14,952.00 ,,Redacted
5184806,STAMFORD CARS UK LTD,Education Services,Childrens Services,Transport Of Post 16 Pupils,,18/12/14,"1,260.00 ",,Redacted
5184807,STAMFORD CARS UK LTD,Education Services,Childrens Services,Transport Of Ola Pupils,,18/12/14,"3,200.00 ",,Redacted
5184809,STAMFORD CARS UK LTD,Education Services,Childrens Services,Transport Of Pupils,,18/12/14,"1,405.00 ",,Redacted
5184810,GREEN MONSTER ARTS,Neighbourhoods & Communities,"Community, Adult & Adults Early Intervention",Professional Entertainment Services,,18/12/14,500.00 ,,Leisure Services
5184811,STAMFORD CARS UK LTD,Education Services,Childrens Services,Transport Of Pupils,,18/12/14,"1,405.00 ",,Redacted
5184814,STAMFORD CARS UK LTD,Education Services,Childrens Services,Transport Of Ola Pupils,,18/12/14,"1,885.00 ",,Redacted
5184815,STAMFORD CARS UK LTD,Education Services,Childrens Services,Transport Of Ola Pupils,,18/12/14,"1,835.00 ",,Redacted
5184816,STAMFORD CARS UK LTD,Education Services,Childrens Services,Transport Of Ola Pupils,,18/12/14,"1,785.00 ",,Redacted
5184818,STAMFORD CARS UK LTD,Education Services,Childrens Services,Transport Of Pupils,,18/12/14,"1,620.00 ",,Redacted
5184819,STAMFORD CARS UK LTD,Education Services,Childrens Services,Transport Of Pupils,,18/12/14,"1,188.00 ",,Redacted
5184821,STAMFORD CARS UK LTD,Education Services,Childrens Services,Transport Of Pupils,,18/12/14,"1,840.00 ",,Redacted
5184823,STAMFORD CARS UK LTD,Education Services,Childrens Services,Transport Of Pupils,,18/12/14,"1,620.00 ",,Redacted
5184826,VINCENT OBRIEN (CONSTRUCTION),Housing,"Economic Growth, Investment and Sustainability",Improvement Grants - Final Mandatory,,19/12/14,"24,225.09 ",,"Works - Construction, Repair & Maintenance"
5184827,BT PLC,Multiple Heads of Service,Multiple Strategic Directorates,Telephone Landline Costs,,19/12/14,"2,596.31 ",,Information Communication Technology
5184828,BT PLC,Multiple Heads of Service,Multiple Strategic Directorates,Telephone Landline Costs,,19/12/14,827.44 ,,Information Communication Technology
5184838,ALLIED HEALTHCARE GROUP LTD (MEDICO),Adult Services,"Community, Adult & Adults Early Intervention",Homecare Fees,,23/12/14,"12,188.82 ",,Social Community Care Supplies & Services
5184840,TAMESIDE ARTS LTD,Adult Services,"Community, Adult & Adults Early Intervention",Professional Services,,18/12/14,"1,224.00 ",,Leisure Services
5184844,"TAMESIDE, OLDHAM AND GLOSSOP MIND",Adult Services,"Community, Adult & Adults Early Intervention",Professional Services,,18/12/14,"2,509.20 ",,Social Community Care Supplies & Services
5184857,GREYSTONES TAMESIDE LTD,Neighbourhoods & Communities,"Community, Adult & Adults Early Intervention",Emergency Grant Payments,,18/12/14,750.00 ,,Financial Services
5184859,MICHAEL ADLARD,Children's Services,Childrens Services,Hired Transport,Business Payment,18/12/14,742.00 ,,Transport
5184866,POST OFFICE,Technical,Places,Motor Licence Costs,,19/12/14,"4,515.00 ",,Mail Services
5184873,,Adult Services,"Community, Adult & Adults Early Intervention",Contribution to Maintenance Fee Income,Redacted Supplier,18/12/14,948.36 ,,Redacted
5184875,CBS (NORTH WEST) LTD,Operations,Places,General Materials,,18/12/14,561.30 ,,"Works - Construction, Repair & Maintenance"
5184878,ABLE CARE AND SUPPORT SERVICES LTD,Adult Services,"Community, Adult & Adults Early Intervention",Homecare Fees,,23/12/14,"1,990.91 ",,Social Community Care Supplies & Services
5184897,CBS (NORTH WEST) LTD,Operations,Places,General Materials,,18/12/14,"1,278.00 ",,"Works - Construction, Repair & Maintenance"
5184905,CBS (NORTH WEST) LTD,Operations,Places,General Materials,,18/12/14,990.60 ,,"Works - Construction, Repair & Maintenance"
5184935,CBS (NORTH WEST) LTD,Operations,Places,General Materials,,18/12/14,781.62 ,,"Works - Construction, Repair & Maintenance"
5184956,THE GUINNESS PARTNERSHIP LTD,Adult Services,"Community, Adult & Adults Early Intervention",Non-Authority Accommodation Rental,,22/12/14,"3,903.20 ",,Housing Management
5184957,STONE SOUP,Neighbourhoods & Communities,"Community, Adult & Adults Early Intervention",Professional Entertainment Services,,18/12/14,790.00 ,,Public Bodies
5184958,THE GUINNESS PARTNERSHIP LTD,Adult Services,"Community, Adult & Adults Early Intervention",Non-Authority Accommodation Rental,,22/12/14,"1,172.45 ",,Housing Management
5184962,STONE SOUP,Neighbourhoods & Communities,"Community, Adult & Adults Early Intervention",Professional Entertainment Services,,18/12/14,640.00 ,,Public Bodies
5184965,QUEST MEDIA NETWORKS LTD,Technical,Places,Statutory Advertising,,23/12/14,600.00 ,,Unclassifiable
5184970,STONE SOUP,Neighbourhoods & Communities,"Community, Adult & Adults Early Intervention",Professional Entertainment Services,,18/12/14,"5,364.00 ",,Public Bodies
5184979,CBS (NORTH WEST) LTD,Operations,Places,General Materials,,18/12/14,631.40 ,,"Works - Construction, Repair & Maintenance"
5184980,TORDAN HEALTHCARE LTD,Children's Services,Childrens Services,Homecare Fees,,23/12/14,609.00 ,,Medical
5184982,TORDAN HEALTHCARE LTD,Children's Services,Childrens Services,Homecare Fees,,23/12/14,616.25 ,,Medical
5184994,STOCKPORT NHS FOUNDATION TRUST,Children's Services,Childrens Services,Homecare Fees,,18/12/14,"1,891.00 ",,Medical
5184996,STOCKPORT NHS FOUNDATION TRUST,Children's Services,Childrens Services,Homecare Fees,,18/12/14,"2,363.75 ",,Medical
5184998,J P KELSEY PLUMBING & HEATING LTD,Housing,"Economic Growth, Investment and Sustainability",Improvement Grants - Final Mandatory,,22/12/14,"3,675.00 ",,Building Construction Materials
5185000,TASCA,Children's Services,Childrens Services,Homecare Fees,,18/12/14,"3,350.00 ",,Unclassifiable
5185001,TORDAN HEALTHCARE LTD,Children's Services,Childrens Services,Homecare Fees,,23/12/14,536.50 ,,Medical
5185002,TORDAN HEALTHCARE LTD,Children's Services,Childrens Services,Homecare Fees,,23/12/14,"1,116.50 ",,Medical
5185003,TORDAN HEALTHCARE LTD,Children's Services,Childrens Services,Homecare Fees,,23/12/14,500.25 ,,Medical
5185004,TORDAN HEALTHCARE LTD,Children's Services,Childrens Services,Homecare Fees,,23/12/14,783.00 ,,Medical
5185006,TORDAN HEALTHCARE LTD,Children's Services,Childrens Services,Homecare Fees,,23/12/14,783.00 ,,Medical
5185009,TORDAN HEALTHCARE LTD,Children's Services,Childrens Services,Homecare Fees,,23/12/14,"1,399.25 ",,Medical
5185018,TORDAN HEALTHCARE LTD,Children's Services,Childrens Services,Homecare Fees,,23/12/14,"1,587.75 ",,Medical
5185019,NPOWER LIMITED,Tameside Investment Partnership,Places,Electricity,,22/12/14,"2,112.52 ",,Utilities
5185022,NPOWER LIMITED,Tameside Investment Partnership,Places,Electricity,,22/12/14,"21,106.65 ",,Utilities
5185024,NPOWER LIMITED,Tameside Investment Partnership,Places,Electricity,,22/12/14,"7,058.42 ",,Utilities
5185025,NPOWER LIMITED,Education Services,Childrens Services,Electricity,,22/12/14,"1,733.05 ",,Utilities
5185031,TORDAN HEALTHCARE LTD,Children's Services,Childrens Services,Homecare Fees,,23/12/14,522.00 ,,Medical
5185040,NPOWER LIMITED,Tameside Investment Partnership,Places,Electricity,,22/12/14,668.92 ,,Utilities
5185047,KIDDIVOUCHERS LTD,Multiple Heads of Service,Multiple Strategic Directorates,Debits,,22/12/14,587.12 ,,Public Bodies
5185057,JULIE CARTER,Adult Services,"Community, Adult & Adults Early Intervention",Professional Interpreter Services,Business Payment,19/12/14,"1,392.00 ",,Unclassifiable
5185059,NPOWER LIMITED,Tameside Investment Partnership,Places,Electricity,,22/12/14,"1,311.03 ",,Utilities
5185062,K P DODD CONSTRUCTION LTD,Housing,"Economic Growth, Investment and Sustainability",Improvement Grants - Final Mandatory,,22/12/14,"3,826.00 ",,"Works - Construction, Repair & Maintenance"
5185063,VODAFONE,Audit & Risk Management,Director of Finance,Project Expenditure Home Office,,19/12/14,"4,695.00 ",,Information Communication Technology
5185065,FRIENDS OF HATTERSLEY STATION,Adults Early Intervention,"Community, Adult & Adults Early Intervention",Development Monies,,18/12/14,500.00 ,,Financial Services
5185066,NPOWER LIMITED,Tameside Investment Partnership,Places,Electricity,,22/12/14,909.63 ,,Utilities
5185070,NPOWER LIMITED,Tameside Investment Partnership,Places,Electricity,,22/12/14,"1,438.73 ",,Utilities
5185072,NPOWER LIMITED,Tameside Investment Partnership,Places,Electricity,,22/12/14,904.08 ,,Utilities
5185080,NPOWER LIMITED,Tameside Investment Partnership,Places,Electricity,,22/12/14,540.58 ,,Utilities
5185082,NPOWER LIMITED,Tameside Investment Partnership,Places,Electricity,,22/12/14,"1,476.41 ",,Utilities
5185090,NPOWER LIMITED,Tameside Investment Partnership,Places,Electricity,,22/12/14,"1,836.89 ",,Utilities
5185092,NPOWER LIMITED,Tameside Investment Partnership,Places,Electricity,,22/12/14,"1,517.01 ",,Utilities
5185096,NPOWER LIMITED,Tameside Investment Partnership,Places,Electricity,,22/12/14,546.39 ,,Utilities
5185102,NPOWER LIMITED,Tameside Investment Partnership,Places,Electricity,,22/12/14,"1,375.88 ",,Utilities
5185103,UNITED UTILITIES WATER PLC,Tameside Investment Partnership,Places,Metered Water Costs,,22/12/14,"1,836.36 ",,Utilities
5185107,UNITED UTILITIES WATER PLC,Tameside Investment Partnership,Places,Metered Water Costs,,22/12/14,"1,235.44 ",,Utilities
5185108,UNITED UTILITIES WATER PLC,Tameside Investment Partnership,Places,Metered Water Costs,,22/12/14,"1,110.61 ",,Utilities
5185123,R-COM CONSULTING LTD,Digital Tameside,Places,Repairs & Maintenance Of General Office Equipment,,22/12/14,"1,788.32 ",,Public Bodies
5185136,CLEAR CHANNEL UK LTD,"Media, Marketing & Communications",Director of Governance,Statutory Advertising,,22/12/14,660.00 ,,Facilities & Management Services
5185141,HYDE COMMUNITY ACTION,Adults Early Intervention,"Community, Adult & Adults Early Intervention",Development Monies,,19/12/14,500.00 ,,Human Resources
5185145,MOSSLEY PRIVATE HIRE,Asset Mgmt & Investment Partnership Mgmt,Places,Hired Transport,,22/12/14,675.00 ,,Redacted
5185155,M G DOMESTIC,Adult Services,"Community, Adult & Adults Early Intervention",Fixtures & Fittings Purchase,,22/12/14,549.99 ,,Domestic Goods
5185156,CALL A CAR (TAMESIDE) LTD,Asset Mgmt & Investment Partnership Mgmt,Places,Hired Transport,,22/12/14,867.50 ,,Human Resources
5185157, ,Children's Services,Childrens Services,Child Care Fees,Redacted Supplier,22/12/14," 1,204.00 ",,Redacted
5185161,CALL A CAR (TAMESIDE) LTD,Asset Mgmt & Investment Partnership Mgmt,Places,Hired Transport,,22/12/14,510.00 ,,Human Resources
5185168, ,Children's Services,Childrens Services,Living With Formal Support,Redacted Supplier,22/12/14,"5,000.00 ",,Redacted
5185182,CARE IN MIND,Adult Services,"Community, Adult & Adults Early Intervention",Residential Home Short Stay Fees,,23/12/14,"2,931.30 ",,Redacted
5185184, ,Children's Services,Childrens Services,Living With Formal Support,Redacted Supplier,22/12/14,"3,400.00 ",,Redacted
5185186,JACKSON & TAYLOR LTD,Housing,"Economic Growth, Investment and Sustainability",Improvement Grants - Final Mandatory,,23/12/14,"3,265.00 ",,"Works -  Construction, Repair & Maintenance"
5185187,JO EDWARDS,Children's Services,Childrens Services,Professional Services,Business Payment,22/12/14,817.60 ,,Unclassifiable
5185190,SPECIALIST COMPUTER CENTRES LIMITED,Audit & Risk Management,Director of Finance,Professional Consultancy Services,,23/12/14,"13,375.94 ",,Information Communication Technology
5185201, ,Children's Services,Childrens Services,Living With Formal Support,Redacted Supplier,22/12/14,"3,400.00 ",,Redacted
5185212,DIRECT CARE (NORTH WEST) LTD,Adult Services,"Community, Adult & Adults Early Intervention",Homecare Fees,,23/12/14,"4,528.94 ",,Social Community Care Supplies & Services
5185213,DIRECT CARE (NORTH WEST) LTD,Adult Services,"Community, Adult & Adults Early Intervention",Homecare Fees,,23/12/14,"5,055.29 ",,Social Community Care Supplies & Services
5185216,DIRECT CARE (NORTH WEST) LTD,Adult Services,"Community, Adult & Adults Early Intervention",Homecare Fees,,23/12/14,"5,371.17 ",,Social Community Care Supplies & Services
5185219,DIRECT CARE (NORTH WEST) LTD,Adult Services,"Community, Adult & Adults Early Intervention",Homecare Fees,,23/12/14,"5,371.17 ",,Social Community Care Supplies & Services
5185220,TAMESIDE ARTS LTD,Adult Services,"Community, Adult & Adults Early Intervention",Professional Services,,22/12/14,"1,224.00 ",,Leisure Services
5185235,LUCY FAITHFULL FOUNDATION,Children's Services,Childrens Services,Professional Services,,23/12/14,"1,329.60 ",,Unclassifiable
5185243,TREASURED MEMORIES LTD,Environmental Services,Places,Plaques,,23/12/14,512.47 ,,Cemetery & Crematorium
5185257,MADELEINE LINDLEY LTD,Strategy & Early Intervention,Childrens Services,"Activity (Materials, Trips)",,23/12/14,798.40 ,,Education
5185279,THE BLACKBURN PRODUCTS CO LTD,Technical,Places,Waste Disposal Fees,,23/12/14,540.00 ,,Environmental Services
5185290,BOLTON MBC,Neighbourhoods & Communities,"Community, Adult & Adults Early Intervention",Contingency Provisions,,22/12/14,"4,911.94 ",,Unclassifiable
5185300,THE FOSTERING NETWORK,Children's Services,Childrens Services,Professional Services,,22/12/14,"2,090.24 ",,Social Community Care
5185302,HOIST & SHOWER CHAIR CO,Housing,"Economic Growth, Investment and Sustainability",Improvement Grants - Final Mandatory,,23/12/14,"1,250.00 ",,Social Community Care Supplies & Services
5185323,OLDHAM COUNCIL,Education Services,Childrens Services,Professional Services,,23/12/14,"1,939.72 ",,Unclassifiable
5185356,CORONA ENERGY RETAIL 4 LIMITED,Tameside Investment Partnership,Places,Gas,,23/12/14,862.35 ,,Utilities
5185367,PERSON CENTRED CARE SERVICES LIMITED,Adult Services,"Community, Adult & Adults Early Intervention",Homecare Fees,,22/12/14,504.00 ,,Medical
5185372,MANCHESTER DIOCESAN BOARD OF FINANCE,Asset Management and Investment Partnership Management,"Economic Growth, Investment and Sustainability","Plant, Vehicles And Equipment",,23/12/14,"5,986.80 ",,Unclassifiable
5185408,SHOWSEC INTERNATIONAL LTD,Neighbourhoods & Communities,"Community, Adult & Adults Early Intervention",Professional Entertainment Services,,22/12/14,"1,134.75 ",,Facilities & Management Services
5185411,GRANT THORNTON UK LLP,Exchequer,Director of Finance,Professional services,,23/12/14,"1,470.00 ",,Financial Services
5185421,HUGH MASON PROPERTIES LIMITED,Adult Services,"Community, Adult & Adults Early Intervention",Non-Authority Accommodation Rental,,23/12/14,"2,411.13 ",,Facilities & Management Services
5185422,HUGH MASON PROPERTIES LIMITED,Adult Services,"Community, Adult & Adults Early Intervention",Non-Authority Accommodation Rental,,23/12/14,"2,153.35 ",,Facilities & Management Services
5185423,HUGH MASON PROPERTIES LIMITED,Adult Services,"Community, Adult & Adults Early Intervention",Non-Authority Accommodation Rental,,23/12/14,"2,153.35 ",,Facilities & Management Services
5185424,CROFT INVESTMENTS LTD,Adult Services,"Community, Adult & Adults Early Intervention",Non-Authority Accommodation Rental,,23/12/14,"1,975.23 ",,Social Community Care Supplies & Services
5185430,WESLEY PROPERTIES (NORTHERN) LTD,Adult Services,"Community, Adult & Adults Early Intervention",Non-Authority Accommodation Rental,,23/12/14,"1,336.48 ",,Facilities & Management Services
5185432,NORTHERN PROPERTIES LTD,Adult Services,"Community, Adult & Adults Early Intervention",Non-Authority Accommodation Rental,,23/12/14,"1,802.24 ",,Facilities & Management Services
5185433,STAMFORD PROPERTIES,Adult Services,"Community, Adult & Adults Early Intervention",Non-Authority Accommodation Rental,,23/12/14,"2,490.47 ",,Unclassifiable
5185434,HAMILTON PROPERTIES,Adult Services,"Community, Adult & Adults Early Intervention",Non-Authority Accommodation Rental,,23/12/14,"1,536.79 ",,Housing Management
5185446,JACKSON & TAYLOR LTD,Housing,"Economic Growth, Investment and Sustainability",Improvement Grants - Final Mandatory,,23/12/14,"3,940.00 ",,"Works -  Construction, Repair & Maintenance"
5185448,K P DODD CONSTRUCTION LTD,Housing,"Economic Growth, Investment and Sustainability",Improvement Grants - Final Mandatory,,23/12/14,"18,504.75 ",,"Works - Construction, Repair & Maintenance"
5185467,JULIE HOGAN,Children's Services,Childrens Services,Inspection Fees,Business Payment,23/12/14,"1,800.00 ",,Unclassifiable
5185467,JULIE HOGAN,Children's Services,Childrens Services,Staff Travel Costs,Business Payment,23/12/14,97.61 ,,Unclassifiable
5185468,THE LOWRY,Neighbourhoods & Communities,"Community, Adult & Adults Early Intervention",Professional Entertainment Services,,23/12/14,773.40 ,,Human Resources
5185469,CHESHIRE EAST BOROUGH COUNCIL,Children's Services,Childrens Services,"Activity (Materials, Trips)",,23/12/14,"3,673.98 ",,Non 3rd Party spend  
5185470,THE LOWRY,Neighbourhoods & Communities,"Community, Adult & Adults Early Intervention",Professional Entertainment Services,,23/12/14,958.50 ,,Human Resources
5185484,KILOGRAMME ANIMATION STUDIO,"Media, Marketing & Communications",Director of Governance,Statutory Advertising,,23/12/14,"5,000.00 ",,Unclassifiable
5185490,THE WOODEN BRIDGE COMPANY,Technical,Places,Engineers Works,,23/12/14,"3,945.00 ",,"Works - Construction, Repair & Maintenance"
5185497,BALLET THEATRE UK,Neighbourhoods & Communities,"Community, Adult & Adults Early Intervention",Professional Entertainment Services,,23/12/14,"1,387.50 ",,Leisure Services
5185499,TIPTOES CHILD THERAPY SERVICES (LTD),Children's Services,Childrens Services,Professional Services,,23/12/14,"1,790.00 ",,Social Community Care Supplies & Services
5185501,PAYPOINT COLLECTIONS LTD,Neighbourhoods & Communities,"Community, Adult & Adults Early Intervention",Emergency Grant Payments,,23/12/14,"1,683.00 ",,Unclassifiable
5185521,CARE UK HOMECARE,Adult Services,"Community, Adult & Adults Early Intervention",Homecare Fees,,23/12/14,"113,208.33 ",,Social Community Care Supplies & Services
5185551,CARE UK HOMECARE,Adult Services,"Community, Adult & Adults Early Intervention",Homecare Fees,,23/12/14,"5,309.16 ",,Social Community Care Supplies & Services
5185557,STEP AHEAD RESOURCE SERVICES,Children's Services,Childrens Services,Living Without Formal Support,,23/12/14,750.00 ,,Social Community Care
5185560,STEP AHEAD RESOURCE SERVICES,Children's Services,Childrens Services,Living Without Formal Support,,23/12/14,750.00 ,,Social Community Care
5185563,STEP AHEAD RESOURCE SERVICES,Children's Services,Childrens Services,Living Without Formal Support,,23/12/14,750.00 ,,Social Community Care
5185564,STEP AHEAD RESOURCE SERVICES,Children's Services,Childrens Services,Living Without Formal Support,,23/12/14,750.00 ,,Social Community Care
5185580,SPECIALISED HOMES AND LODGINGS LTD,Children's Services,Childrens Services,Living With Formal Support,,23/12/14,"3,321.42 ",,Unclassifiable
5185605,CORONA ENERGY RETAIL 4 LIMITED,Tameside Investment Partnership,Places,Gas,,23/12/14,684.95 ,,Utilities
5185629,CORONA ENERGY RETAIL 4 LIMITED,Tameside Investment Partnership,Places,Gas,,23/12/14,781.02 ,,Utilities
5185632,BOTTOMLINE TECHNOLOGIES LIMITED,Digital Tameside,Places,It Equipment,,23/12/14,"2,607.05 ",,Information Communication Technology
5185633,CORONA ENERGY RETAIL 4 LIMITED,Tameside Investment Partnership,Places,Gas,,23/12/14,"1,020.29 ",,Utilities
5185635,CORONA ENERGY RETAIL 4 LIMITED,Tameside Investment Partnership,Places,Gas,,23/12/14,"2,112.37 ",,Utilities
5185640,TRADITION UK LIMITED,Resource Management,Director of Finance,Temporary Loans,,23/12/14,529.32 ,,Financial Services
5185652,CORONA ENERGY RETAIL 4 LIMITED,Tameside Investment Partnership,Places,Gas,,23/12/14,"3,841.42 ",,Utilities
5185660,CORONA ENERGY RETAIL 4 LIMITED,Tameside Investment Partnership,Places,Gas,,23/12/14,563.21 ,,Utilities
5185662,CORONA ENERGY RETAIL 4 LIMITED,Tameside Investment Partnership,Places,Gas,,23/12/14,590.34 ,,Utilities
5185664,CORONA ENERGY RETAIL 4 LIMITED,Tameside Investment Partnership,Places,Gas,,23/12/14,562.57 ,,Utilities
5185670,CORONA ENERGY RETAIL 4 LIMITED,Tameside Investment Partnership,Places,Gas,,23/12/14,"2,730.44 ",,Utilities
5185672,CORONA ENERGY RETAIL 4 LIMITED,Tameside Investment Partnership,Places,Gas,,23/12/14,683.88 ,,Utilities
5185679,PG FABRICATIONS,Operations,Places,General Materials,,23/12/14,810.00 ,,"Works - Construction, Repair & Maintenance"
5185681,CORONA ENERGY RETAIL 4 LIMITED,Tameside Investment Partnership,Places,Gas,,23/12/14,"1,892.65 ",,Utilities
5185688,F G MARSHALL LTD,Environmental Services,Places,Plaques,,23/12/14,939.44 ,,Cemetery & Crematorium
5185698,CORONA ENERGY RETAIL 4 LIMITED,Tameside Investment Partnership,Places,Gas,,23/12/14,"1,549.00 ",,Utilities
5185704,CORONA ENERGY RETAIL 4 LIMITED,Tameside Investment Partnership,Places,Gas,,23/12/14,860.02 ,,Utilities
5185708,CORONA ENERGY RETAIL 4 LIMITED,Tameside Investment Partnership,Places,Gas,,23/12/14,"1,784.04 ",,Utilities
5185712,CORONA ENERGY RETAIL 4 LIMITED,Tameside Investment Partnership,Places,Gas,,23/12/14,688.41 ,,Utilities
5185729,CORONA ENERGY RETAIL 4 LIMITED,Tameside Investment Partnership,Places,Gas,,23/12/14,"2,149.30 ",,Utilities
5185730,CORONA ENERGY RETAIL 4 LIMITED,Tameside Investment Partnership,Places,Gas,,23/12/14,"2,965.70 ",,Utilities
5185731,CORONA ENERGY RETAIL 4 LIMITED,Tameside Investment Partnership,Places,Gas,,23/12/14,"1,699.22 ",,Utilities
5185734,CORONA ENERGY RETAIL 4 LIMITED,Tameside Investment Partnership,Places,Gas,,23/12/14,893.63 ,,Utilities
5185738,CORONA ENERGY RETAIL 4 LIMITED,Tameside Investment Partnership,Places,Gas,,23/12/14,722.78 ,,Utilities
5185739,CORONA ENERGY RETAIL 4 LIMITED,Tameside Investment Partnership,Places,Gas,,23/12/14,"5,434.42 ",,Utilities
5185743,CORONA ENERGY RETAIL 4 LIMITED,Tameside Investment Partnership,Places,Gas,,23/12/14,"1,396.50 ",,Utilities
5185785,UNITED UTILITIES WATER PLC,Education Services,Childrens Services,Metered Water Costs,,23/12/14,"2,463.15 ",,Utilities
5185807,EQUIFAX LTD,Children's Services,Childrens Services,Professional Services,,23/12/14,850.85 ,,Financial Services
5185822,VODAFONE,Asset Mgmt & Investment Partnership Mgmt,Places,Telephone Landline Costs,,23/12/14,917.63 ,,Information Communication Technology
5185882,HANDICARE LIMITED,Housing,"Economic Growth, Investment and Sustainability",Improvement Grants - Final Mandatory,,23/12/14,"2,077.00 ",,Social Community Care
5185883,CARE IN MIND LTD,Children's Services,Childrens Services,Homecare Fees,,23/12/14,"4,633.80 ",,Redacted
5185900,ADVENTURE BASED LEARNING,Neighbourhoods & Communities,"Community, Adult & Adults Early Intervention",Professional Entertainment Services,,23/12/14,"1,440.00 ",,Redacted
5185935,VINCENT OBRIEN (CONSTRUCTION),Sustainable Growth,Places,Enforcement Notice Fees,,23/12/14,"2,100.00 ",,"Works - Construction, Repair & Maintenance"
5185952,BLAINEY BAKERS,Strategy & Early Intervention,Childrens Services,Refreshments,,23/12/14,720.00 ,,Catering 
29000019,S2 ENTERPRISE LTD T/A PENNY MEADOW PHARMACY,Public Health,Public Health,Local Enhanced Services,,15/12/14,"1,375.00 ",,Consultancy
29000020,DRS J PROCTER & D MARR,Public Health,Public Health,Local Enhanced Services,Business Payment,22/12/14,"1,999.00 ",,Redacted
29000020,LOCKSIDE MEDICAL CENTRE,Public Health,Public Health,Local Enhanced Services,,22/12/14,"1,109.10 ",,Redacted
29000020,THE CO-OP PHARMACY,Public Health,Public Health,Local Enhanced Services,,22/12/14,"2,140.11 ",,Redacted
29000020,WINDMILL MEDICAL PRACTICE,Public Health,Public Health,Local Enhanced Services,,22/12/14,914.30 ,,Redacted
29000020,ALBION MEDICAL PRACTICE,Public Health,Public Health,Local Enhanced Services,,22/12/14,"1,572.00 ",,Consultancy
29000020,AWBURN HOUSE MEDICAL PRACTICE,Public Health,Public Health,Local Enhanced Services,,22/12/14,564.00 ,,Consultancy
29000020,BOOTS UK LTD,Public Health,Public Health,Local Enhanced Services,,22/12/14,"1,378.57 ",,Redacted
29000020,CHAPEL STREET MEDICAL CENTRE,Public Health,Public Health,Local Enhanced Services,,22/12/14,"2,238.80 ",,Consultancy
29000020,DAVAAR MEDICAL CENTRE,Public Health,Public Health,Local Enhanced Services,,22/12/14,"1,743.80 ",,Consultancy
29000020,DR S VUYYURU AND DR M KINSEY,Public Health,Public Health,Local Enhanced Services,Business Payment,22/12/14,"2,789.00 ",,Consultancy
29000020,MANOR HOUSE SURGERY,Public Health,Public Health,Local Enhanced Services,,22/12/14,709.09 ,,Consultancy
29000020,MEDICX PHARMACY,Public Health,Public Health,Local Enhanced Services,,22/12/14,"2,852.28 ",,Consultancy
29000020,MOSSLEY MEDICAL PRACTICE,Public Health,Public Health,Local Enhanced Services,,22/12/14,539.40 ,,Consultancy
29000020,R J LAD CHEMISTS LTD,Public Health,Public Health,Local Enhanced Services,,22/12/14,825.57 ,,Consultancy
29000020,TESCO INSTORE PHARMACY,Public Health,Public Health,Local Enhanced Services,,22/12/14,935.08 ,,Consultancy
29000020,THE BROOKE SURGERY,Public Health,Public Health,Local Enhanced Services,,22/12/14,"2,134.00 ",,Consultancy
29000020,THE GROUP PHARMACY,Public Health,Public Health,Local Enhanced Services,,22/12/14,557.83 ,,Consultancy
29000020,WEST END MEDICAL PRACTICE,Public Health,Public Health,Local Enhanced Services,,22/12/14,"1,043.00 ",,Consultancy
29000020,DENTON MEDICAL PRACTICE,Public Health,Public Health,Local Enhanced Services,,22/12/14,704.50 ,,Medical
29000020,MARKET STREET MEDICAL PRACTICE,Public Health,Public Health,Local Enhanced Services,,22/12/14,"2,502.00 ",,Medical
29000020,STAMFORD HOUSE MEDICAL CENTRE,Public Health,Public Health,Local Enhanced Services,,22/12/14,672.00 ,,Medical
 ,CAPITA - BENEFIT PAYMENTS,Exchequer,Director of Finance,Housing Benefit Payments,,,"7,145,490.37 ",,Unclassifiable
,HAYS SPECIALIST RECRUITMENT GROUP,Multiple Heads of Service,Multiple Strategic Directorates,Agency Staff,,,"85,874.41 ",,Human Resources
,FOSTERING/ADOPTION RELATED PAYMENTS,Children's Services,Childrens Services,Fostering/Adoption related payments, , ," 570,405.08 ",,Redacted
,CARE RELATED PAYMENTS,Multiple Heads of Service,Multiple Strategic Directorates,Care Related Payments,,,"451,571.64 ",,Redacted
